Workbook

Sheet Instructions
A1: 1) | B1: Go to reports on Ranch Systems Web Site and Download 'Daily Weather Summary' Starting from 1/21/2017 ending on the current Day
A3: 2) | B3: Drag Down the Growing Degree Days Column Appropriately

Sheet paste raw data
A3: *paste below*
A5: Data exported by Ranch Systems LLC on 2020-03-17 17:23:11
A6: Date | B6: Max Temp | C6: Time of Max | D6: Min Temp | E6: Time of Min | F6: Avg Temp | G6: Max RH | H6: Min RH | I6: Max Wind | J6: Avg Wind | K6: Max Solar | L6: Avg Solar | M6: Rain | O6: GGD ((Tmax-Tmin)/2-50) | P6: Cum GGD Since January 1st | Q6: yearless dates | R6: Apr-Oct GGD | S6: 7 day smoothing | T6: 15 day smoothing | U6: 31 day smoothing
A7: 2017-01-01
A8: 2017-01-02
A9: 2017-01-03
A10: 2017-01-04
A11: 2017-01-05
A12: 2017-01-06
A13: 2017-01-07
A14: 2017-01-08
A15: 2017-01-09
A16: 2017-01-10
A17: 2017-01-11
A18: 2017-01-12
A19: 2017-01-13
A20: 2017-01-14
A21: 2017-01-15
A22: 2017-01-16
A23: 2017-01-17
A24: 2017-01-18
A25: 2017-01-19
A26: 2017-01-20
A27: 2017-01-21 | B27: 43.8 | C27: 2017-01-21T10:45:00 | D27: 36.4 | E27: 2017-01-21T17:15:00 | F27: 38.7 | O27: =IF((B27+D27)/2-50>0,(B27+D27)/2-50,0) -> 0 | P27: =O27 -> 0 | Q27: =TEXT(A27,"mm/dd") -> 01/21 | S27: =(F27+F28+F29+F30+F31+F32)/7 -> 38.75714286 | T27: =(F$28+F$29+F$30+F$31+F$32+F$33+F$34+F$35+F$36+F$37+F$38+F$39+F$40+F$41+F$27)/15 -> 46.22666667 | U27: =(F$27+F$28+F$29+F$30+F$31+F$32+F$33+F$34+F$35+F$36+F$37+F$38+F$39+F$40+F$41+F$42+F$43+F$44+F$45+F$46+F$47+F$48+F$49+F$50+F$51+F$52+F$53+F$54+F$55+F$56+F$57)/31 -> 49.94193548
A28: 2017-01-22 | B28: 56.5 | C28: 2017-01-22T15:30:01 | D28: 34.5 | E28: 2017-01-22T05:15:00 | F28: 43.9 | O28: 0 | P28: =P27+O27 -> 0 | Q28: =TEXT(A28,"mm/dd") -> 01/22 | S28: =(S27+F28+F29+F30+F31+F32+F33)/7 -> 43.40816327 | T28: =(F$28+F$29+F$30+F$31+F$32+F$33+F$34+F$35+F$36+F$37+F$38+F$39+F$40+F$41+T$27)/15 -> 46.72844444 | U28: =(U$27+F$28+F$29+F$30+F$31+F$32+F$33+F$34+F$35+F$36+F$37+F$38+F$39+F$40+F$41+F$42+F$43+F$44+F$45+F$46+F$47+F$48+F$49+F$50+F$51+F$52+F$53+F$54+F$55+F$56+F$57)/31 -> 50.30457856
A29: 2017-01-23 | B29: 73 | C29: 2017-01-23T16:00:01 | D29: 37.9 | E29: 2017-01-23T08:00:02 | F29: 55 | G29: 36.8 | H29: 22.2 | I29: 6.2 | J29: 0.8 | K29: 84.9 | L29: 6.7 | M29: 0 | O29: 5.45 | P29: =P28+O28 -> 0 | Q29: 01/23 | S29: =(S27+S28+F29+F30+F31+F32+F33)/7 -> 43.33790087 | T29: =(T$28+F$29+F$30+F$31+F$32+F$33+F$34+F$35+F$36+F$37+F$38+F$39+F$40+F$41+T$27)/15 -> 46.91700741 | U29: =(U$27+U$28+F$29+F$30+F$31+F$32+F$33+F$34+F$35+F$36+F$37+F$38+F$39+F$40+F$41+F$42+F$43+F$44+F$45+F$46+F$47+F$48+F$49+F$50+F$51+F$52+F$53+F$54+F$55+F$56+F$57)/31 -> 50.51117787
A30: 2017-01-24 | B30: 71 | C30: 2017-01-24T13:45:00 | D30: 41.9 | E30: 2017-01-24T23:30:01 | F30: 55.3 | G30: 53.4 | H30: 16.2 | I30: 16 | J30: 3.8 | K30: 643.9 | L30: 125.3 | M30: 0 | O30: 6.45 | P30: 5.45 | Q30: 01/24 | S30: =(S27+S28+S29+F30+F31+F32+F33)/7 -> 41.67188671 | T30: =(T$28+T$29+F$30+F$31+F$32+F$33+F$34+F$35+F$36+F$37+F$38+F$39+F$40+F$41+T$27)/15 -> 46.37814123 | U30: =(U$27+U$28+U$29+F$30+F$31+F$32+F$33+F$34+F$35+F$36+F$37+F$38+F$39+F$40+F$41+F$42+F$43+F$44+F$45+F$46+F$47+F$48+F$49+F$50+F$51+F$52+F$53+F$54+F$55+F$56+F$57)/31 -> 50.36637716
A31: 2017-01-25 | B31: 50.9 | C31: 2017-01-25T16:00:01 | D31: 29.3 | E31: 2017-01-25T23:30:01 | F31: 39.2 | G31: 64.4 | H31: 16.9 | I31: 4.8 | J31: 1.2 | K31: 661.4 | L31: 90.1 | M31: 0 | O31: 0 | P31: 11.9 | Q31: 01/25 | S31: =(S28+S29+S30+F31+F32+F33+F34)/7 -> 39.24542155 | T31: =(T$28+T$29+T$30+F$31+F$32+F$33+F$34+F$35+F$36+F$37+F$38+F$39+F$40+F$41+T$27)/15 -> 45.78335065 | U31: =(U$27+U$28+U$29+U$30+F$31+F$32+F$33+F$34+F$35+F$36+F$37+F$38+F$39+F$40+F$41+F$42+F$43+F$44+F$45+F$46+F$47+F$48+F$49+F$50+F$51+F$52+F$53+F$54+F$55+F$56+F$57)/31 -> 50.20722803
A32: 2017-01-26 | B32: 57.5 | C32: 2017-01-26T14:45:01 | D32: 25.1 | E32: 2017-01-26T04:00:02 | F32: 39.2 | G32: 49.3 | H32: 20.7 | I32: 5.5 | J32: 1.1 | K32: 810.7 | L32: 116.1 | M32: 0 | O32: 0 | P32: 11.9 | Q32: 01/26 | S32: 39.07931559 | T32: =(T$28+T$29+T$30+T$31+F$32+F$33+F$34+F$35+F$36+F$37+F$38+F$39+F$40+F$41+T$27)/15 -> 46.22224069 | U32: =(U$27+U$28+U$29+U$30+U$31+F$32+F$33+F$34+F$35+F$36+F$37+F$38+F$39+F$40+F$41+F$42+F$43+F$44+F$45+F$46+F$47+F$48+F$49+F$50+F$51+F$52+F$53+F$54+F$55+F$56+F$57)/31 -> 50.56229991
A33: 2017-01-27 | B33: 44.6 | C33: 2017-01-27T12:00:10 | D33: 23.7 | E33: 2017-01-27T08:00:01 | F33: 32.5 | G33: 94.1 | H33: 34.5 | I33: 6.8 | J33: 1.2 | K33: 813.6 | L33: 120.4 | M33: 0 | O33: 0 | P33: 11.9 | Q33: 01/27 | S33: 39.57094627 | T33: =(T$28+T$29+T$30+T$31+T$32+F$33+F$34+F$35+F$36+F$37+F$38+F$39+F$40+F$41+T$27)/15 -> 46.69039007 | U33: =(U$27+U$28+U$29+U$30+U$31+U$32+F$33+F$34+F$35+F$36+F$37+F$38+F$39+F$40+F$41+F$42+F$43+F$44+F$45+F$46+F$47+F$48+F$49+F$50+F$51+F$52+F$53+F$54+F$55+F$56+F$57)/31 -> 50.92882571
A34: 2017-01-28 | B34: 53.3 | C34: 2017-01-28T14:15:01 | D34: 19.5 | E34: 2017-01-28T06:00:02 | F34: 35.4 | G34: 92.7 | H34: 18.2 | I34: 4.2 | J34: 0.8 | K34: 652.7 | L34: 129.7 | M34: 0 | O34: 0 | P34: 11.9 | Q34: 01/28 | S34: 42.27081192 | T34: =(T27+T28+T29+T30+T31+T32+T33+F34+F35+F36+F37+F38+F39+F40+F41)/15 -> 47.63641608 | U34: =(U$27+U$28+U$29+U$30+U$31+U$32+U$33+F$34+F$35+F$36+F$37+F$38+F$39+F$40+F$41+F$42+F$43+F$44+F$45+F$46+F$47+F$48+F$49+F$50+F$51+F$52+F$53+F$54+F$55+F$56+F$57)/31 -> 51.52330396
A35: 2017-01-29 | B35: 59.7 | C35: 2017-01-29T14:30:01 | D35: 27.3 | E35: 2017-01-29T02:45:00 | F35: 42.2 | G35: 36.8 | H35: 17.3 | I35: 4 | J35: 0.8 | K35: 655.6 | L35: 129.2 | M35: 0 | O35: 0 | P35: 11.9 | Q35: 01/29 | S35: 45.78872482 | T35: =(T28+T29+T30+T31+T32+T33+T34+F35+F36+F37+F38+F39+F40+F41+F42)/15 -> 49.15706604 | U35: =(U$27+U$28+U$29+U$30+U$31+U$32+U$33+U$34+F$35+F$36+F$37+F$38+F$39+F$40+F$41+F$42+F$43+F$44+F$45+F$46+F$47+F$48+F$49+F$50+F$51+F$52+F$53+F$54+F$55+F$56+F$57)/31 -> 52.04341054
A36: 2017-01-30 | B36: 63.1 | C36: 2017-01-30T14:30:01 | D36: 33.2 | E36: 2017-01-30T02:00:01 | F36: 46.9 | G36: 40.1 | H36: 13.1 | I36: 7.9 | J36: 2.2 | K36: 664.4 | L36: 131.8 | M36: 0 | O36: 0 | P36: 11.9 | Q36: 01/30 | S36: 47.74721186 | T36: =(T29+T30+T31+T32+T33+T34+T35+F36+F37+F38+F39+F40+F41+F42+F43)/15 -> 50.38564081 | U36: =(U$27+U$28+U$29+U$30+U$31+U$32+U$33+U$34+U$35+F$36+F$37+F$38+F$39+F$40+F$41+F$42+F$43+F$44+F$45+F$46+F$47+F$48+F$49+F$50+F$51+F$52+F$53+F$54+F$55+F$56+F$57)/31 -> 52.36093991
A37: 2017-01-31 | B37: 67.2 | C37: 2017-01-31T15:45:00 | D37: 39 | E37: 2017-01-31T00:45:00 | F37: 53.5 | G37: 32.1 | H37: 12 | I37: 10.8 | J37: 3.2 | K37: 670.2 | L37: 132.4 | M37: 0 | O37: 3.1 | P37: 11.9 | Q37: 01/31 | S37: 49.60096409 | T37: 51.38354971 | U37: =(U$27+U$28+U$29+U$30+U$31+U$32+U$33+U$34+U$35+U$36+F$37+F$38+F$39+F$40+F$41+F$42+F$43+F$44+F$45+F$46+F$47+F$48+F$49+F$50+F$51+F$52+F$53+F$54+F$55+F$56+F$57)/31 -> 52.53709926
A38: 2017-02-01 | B38: 72.9 | C38: 2017-02-01T15:00:01 | D38: 42.1 | E38: 2017-02-01T23:30:01 | F38: 57 | G38: 24.6 | H38: 10 | I38: 8.8 | J38: 2.8 | K38: 676.1 | L38: 132.2 | M38: 0 | O38: 7.5 | P38: 15 | Q38: 02/01 | S38: 50.67670011 | T38: 52.28391027 | U38: =(U$27+U$28+U$29+U$30+U$31+U$32+U$33+U$34+U$35+U$36+U$37+F$38+F$39+F$40+F$41+F$42+F$43+F$44+F$45+F$46+F$47+F$48+F$49+F$50+F$51+F$52+F$53+F$54+F$55+F$56+F$57)/31 -> 52.50603795
A39: 2017-02-02 | B39: 67.3 | C39: 2017-02-02T15:30:02 | D39: 36.5 | E39: 2017-02-02T21:45:00 | F39: 49.2 | G39: 50.7 | H39: 19.4 | I39: 6.2 | J39: 2.1 | K39: 676.1 | L39: 132.5 | M39: 0 | O39: 1.9 | P39: 22.5 | Q39: 02/02 | S39: 51.34641086 | T39: 52.82394758 | U39: =(U$27+U$28+U$29+U$30+U$31+U$32+U$33+U$34+U$35+U$36+U$37+U$38+F$39+F$40+F$41+F$42+F$43+F$44+F$45+F$46+F$47+F$48+F$49+F$50+F$51+F$52+F$53+F$54+F$55+F$56+F$57)/31 -> 52.36107143
A40: 2017-02-03 | B40: 74.2 | C40: 2017-02-03T14:45:01 | D40: 38.3 | E40: 2017-02-03T00:30:01 | F40: 51.7 | G40: 66.6 | H40: 18.8 | I40: 9 | J40: 2.1 | K40: 684.8 | L40: 129.4 | M40: 0 | O40: 6.25 | P40: 24.4 | Q40: 02/03 | S40: 53.14629644 | T40: 54.43072804 | U40: =(U$27+U$28+U$29+U$30+U$31+U$32+U$33+U$34+U$35+U$36+U$37+U$38+U$39+F$40+F$41+F$42+F$43+F$44+F$45+F$46+F$47+F$48+F$49+F$50+F$51+F$52+F$53+F$54+F$55+F$56+F$57)/31 -> 52.46304148
A41: 2017-02-04 | B41: 75.9 | C41: 2017-02-04T14:45:01 | D41: 36.3 | E41: 2017-02-04T00:45:01 | F41: 53.7 | G41: 83.3 | H41: 20.7 | I41: 8.4 | J41: 1.8 | K41: 766.8 | L41: 121.7 | M41: 0 | O41: 6.1 | P41: 30.65 | Q41: 02/04 | S41: 54.60991534 | T41: 56.0400839 | U41: =(U$27+U$28+U$29+U$30+U$31+U$32+U$33+U$34+U$35+U$36+U$37+U$38+U$39+U$40+F$41+F$42+F$43+F$44+F$45+F$46+F$47+F$48+F$49+F$50+F$51+F$52+F$53+F$54+F$55+F$56+F$57)/31 -> 52.48765572
A42: 2017-02-05 | B42: 75.2 | C42: 2017-02-05T13:00:02 | D42: 42.9 | E42: 2017-02-05T07:15:01 | F42: 56.8 | G42: 51.5 | H42: 17.3 | I42: 9.3 | J42: 1.7 | K42: 752.2 | L42: 142.1 | M42: 0 | O42: 9.05 | P42: 36.75 | Q42: 02/05 | S42: 56.35751752 | T42: 56.80032842 | U42: =(U$27+U$28+U$29+U$30+U$31+U$32+U$33+U$34+U$35+U$36+U$37+U$38+U$39+U$40+U$41+F$42+F$43+F$44+F$45+F$46+F$47+F$48+F$49+F$50+F$51+F$52+F$53+F$54+F$55+F$56+F$57)/31 -> 52.44854784
A43: 2017-02-06 | B43: 73 | C43: 2017-02-06T13:45:03 | D43: 42.8 | E43: 2017-02-06T23:15:00 | F43: 58.2 | G43: 37.7 | H43: 13.5 | I43: 11 | J43: 3 | K43: 784.4 | L43: 112.8 | M43: 0 | O43: 7.9 | P43: 45.8 | Q43: 02/06 | S43: 57.33053276 | T43: 56.13654592 | U43: =(U28+U29+U30+U31+U32+U33+U34+U35+U36+U37+U38+U39+U40+U41+U42+F43+F44+F45+F46+F47+F48+F49+F50+F51+F52+F53+F54+F55+F56+F57+F58)/31 -> 52.55521275
A44: 2017-02-07 | B44: 69.2 | C44: 2017-02-07T14:45:00 | D44: 47.3 | E44: 2017-02-07T00:45:00 | F44: 58.4 | G44: 34 | H44: 18.5 | I44: 15.8 | J44: 6 | K44: 681.9 | L44: 131.1 | M44: 0 | O44: 8.25 | P44: 53.7 | Q44: 02/07 | S44: 59.14256652 | T44: 55.09327292 | U44: =(U29+U30+U31+U32+U33+U34+U35+U36+U37+U38+U39+U40+U41+U42+U43+F44+F45+F46+F47+F48+F49+F50+F51+F52+F53+F54+F55+F56+F57+F58+F59)/31 -> 52.8503945
A45: 2017-02-08 | B45: 79.2 | C45: 2017-02-08T14:15:00 | D45: 47.1 | E45: 2017-02-08T08:00:01 | F45: 62 | G45: 49.1 | H45: 14.8 | I45: 10.7 | J45: 3.6 | K45: 699.5 | L45: 138.7 | M45: 0 | O45: 13.15 | P45: 61.95 | Q45: 02/08 | S45: 61.1758024 | T45: 54.1805878 | U45: 53.06778859
A46: 2017-02-09 | B46: 76.3 | C46: 2017-02-09T15:30:01 | D46: 44.4 | E46: 2017-02-09T06:45:01 | F46: 58.6 | G46: 48.6 | H46: 23.4 | I46: 10.2 | J46: 2.5 | K46: 693.6 | L46: 139.4 | M46: 0 | O46: 10.35 | P46: 75.1 | Q46: 02/09 | S46: 61.10698595 | T46: 53.17369964 | U46: 52.93235024
A47: 2017-02-10 | B47: 85 | C47: 2017-02-10T14:45:00 | D47: 52.5 | E47: 2017-02-10T06:30:01 | F47: 66.7 | G47: 39.3 | H47: 11.8 | I47: 11.2 | J47: 3.2 | K47: 708.3 | L47: 142 | M47: 0 | O47: 18.75 | P47: 85.45 | Q47: 02/10 | S47: 58.8750507 | T47: 52.52368311 | U47: 52.83316064
A48: 2017-02-11 | B48: 85.7 | C48: 2017-02-11T13:30:01 | D48: 48.1 | E48: 2017-02-11T07:45:01 | F48: 68.1 | G48: 30.7 | H48: 10.1 | I48: 12.7 | J48: 3.2 | K48: 702.4 | L48: 141.4 | M48: 0 | O48: 16.9 | P48: 104.2 | Q48: 02/11 | S48: 54.56540558 | T48: 51.70321345 | U48: 52.56447873
A49: 2017-02-12 | B49: 69.1 | C49: 2017-02-12T01:30:02 | D49: 44.5 | E49: 2017-02-12T23:45:00 | F49: 56.7 | G49: 61.1 | H49: 17.5 | I49: 15.8 | J49: 6.3 | K49: 664.4 | L49: 107 | M49: 0 | O49: 6.8 | P49: 121.1 | Q49: 02/12 | S49: 49.7496346 | T49: 50.36742208 | U49: 52.2527256
A50: 2017-02-13 | B50: 45.4 | C50: 2017-02-13T01:15:01 | D50: 33.5 | E50: 2017-02-13T23:30:01 | F50: 39.2 | G50: 94.5 | H50: 56 | I50: 7.2 | J50: 2.2 | K50: 281 | L50: 50.5 | M50: 0 | O50: 0 | P50: 127.9 | Q50: 02/13 | S50: 46.45572727 | T50: 49.49856166 | U50: 52.39561017
A51: 2017-02-14 | B51: 43.4 | C51: 2017-02-14T13:30:01 | D51: 31.2 | E51: 2017-02-14T23:30:02 | F51: 36.8 | G51: 98.8 | H51: 62.3 | I51: 8 | J51: 1.6 | K51: 772.6 | L51: 88.7 | M51: 0 | O51: 0 | P51: 127.9 | Q51: 02/14 | S51: 46.01010964 | T51: 50.28269604 | U51: 52.87471338
A52: 2017-02-15 | B52: 55.8 | C52: 2017-02-15T15:15:01 | D52: 30.3 | E52: 2017-02-15T06:15:01 | F52: 41 | G52: 63.2 | H52: 31.1 | I52: 5.9 | J52: 1.7 | K52: 717 | L52: 132.1 | M52: 0 | O52: 0 | P52: 127.9 | Q52: 02/15 | S52: 47.57363879 | T52: 51.84865759 | U52: 53.31709317
A53: 2017-02-16 | B53: 62.3 | C53: 2017-02-16T16:15:01 | D53: 30.4 | E53: 2017-02-16T07:00:02 | F53: 45 | G53: 60.3 | H53: 27.4 | I53: 7.6 | J53: 1.8 | K53: 854.6 | L53: 154 | M53: 0 | O53: 0 | P53: 127.9 | Q53: 02/16 | S53: 48.89135367 | T53: 53.1465289 | U53: 53.61644781
A54: 2017-02-17 | B54: 61.5 | C54: 2017-02-17T14:15:00 | D54: 31.6 | E54: 2017-02-17T02:15:01 | F54: 48.5 | G54: 63.9 | H54: 28.1 | I54: 18.5 | J54: 4.3 | K54: 755.1 | L54: 117.8 | M54: 0 | O54: 0 | P54: 127.9 | Q54: 02/17 | S54: 49.96787173 | T54: 53.81805086 | U54: 53.87484813
A55: 2017-02-18 | B55: 70.4 | C55: 2017-02-18T14:00:01 | D55: 39.8 | E55: 2017-02-18T07:30:02 | F55: 56.3 | G55: 60.8 | H55: 21.6 | I55: 9 | J55: 2.6 | K55: 746.3 | L55: 135.6 | M55: 0 | O55: 5.1 | P55: 127.9 | Q55: 02/18 | S55: 51.83326631 | T55: 54.19100871 | U55: 54.22690544
A56: 2017-02-19 | B56: 61.5 | C56: 2017-02-19T16:15:01 | D56: 46.3 | E56: 2017-02-19T23:30:02 | F56: 52.4 | G56: 72.3 | H56: 21.1 | I56: 14.3 | J56: 4 | K56: 602.9 | L56: 109.3 | M56: 0 | O56: 3.9 | P56: 133 | Q56: 02/19 | S56: 53.69892739 | T56: 54.34352839 | U56: 54.42573976
A57: 2017-02-20 | B57: 62.3 | C57: 2017-02-20T16:00:02 | D57: 41.4 | E57: 2017-02-20T04:30:01 | F57: 50.1 | G57: 64.3 | H57: 28.4 | I57: 11.2 | J57: 4.2 | K57: 752.2 | L57: 160.9 | M57: 0 | O57: 1.85 | P57: 136.9 | Q57: 02/20 | S57: 55.87143792 | T57: 54.90193548 | U57: 54.70438764
A58: 2017-02-21 | B58: 78.4 | C58: 2017-02-21T14:00:01 | D58: 34.6 | E58: 2017-02-21T05:30:02 | F58: 57.6 | G58: 53.1 | H58: 14.4 | I58: 11.8 | J58: 3.6 | K58: 760.9 | L58: 165.3 | M58: 0 | O58: 6.5 | P58: 138.75 | Q58: 02/21 | S58: 57.42909023 | T58: 55.94882706 | U58: 55.08360828
A59: 2017-02-22 | B59: 82.1 | C59: 2017-02-22T15:30:01 | D59: 49.6 | E59: 2017-02-22T08:00:01 | F59: 65.1 | G59: 30.1 | H59: 8.9 | I59: 12.5 | J59: 3.5 | K59: 772.6 | L59: 169.9 | M59: 0 | O59: =IF((B59+D59)/2-50>0,(B59+D59)/2-50,0) -> 15.85 | P59: 145.25 | Q59: 02/22 | S59: 57.54277936 | T59: 56.06656913 | U59: 55.37484684
A60: 2017-02-23 | B60: 78.3 | C60: 2017-02-23T14:00:01 | D60: 46.2 | E60: 2017-02-23T07:00:02 | F60: 62.8 | G60: 32.2 | H60: 8.7 | I60: 20.5 | J60: 6.3 | K60: 763.9 | L60: 166.3 | M60: 0 | O60: 12.25 | P60: 161.1 | Q60: 02/23 | S60: 56.80618679 | T60: 55.34109657 | U60: 55.38531305
A61: 2017-02-24 | B61: 66.2 | C61: 2017-02-24T14:30:01 | D61: 45.6 | E61: 2017-02-24T20:45:01 | F61: 55.1 | G61: 34.7 | H61: 5.7 | I61: 14.6 | J61: 6 | K61: 787.3 | L61: 177.5 | M61: 0 | O61: 5.9 | P61: 173.35 | Q61: 02/24 | S61: 56.08257948 | T61: 54.60073441 | U61: 55.46329771
A62: 2017-02-25 | B62: 68 | C62: 2017-02-25T15:15:00 | D62: 33.4 | E62: 2017-02-25T06:15:01 | F62: 52.8 | G62: 22.6 | H62: 5.5 | I62: 10.4 | J62: 2.9 | K62: 787.3 | L62: 178 | M62: 0 | O62: 0.7 | P62: 179.25 | Q62: 02/25 | S62: 56.64736366 | T62: 54.43957998 | U62: 55.57074762
A63: 2017-02-26 | B63: 70.5 | C63: 2017-02-26T15:30:02 | D63: 41 | E63: 2017-02-26T05:30:02 | F63: 56.1 | G63: 27 | H63: 10.7 | I63: 15.5 | J63: 4.8 | K63: 763.9 | L63: 158.4 | M63: 0 | O63: 5.75 | P63: 179.95 | Q63: 02/26 | S63: 56.64801856 | T63: 54.7961514 | U63: 55.63970204
A64: 2017-02-27 | B64: 73.1 | C64: 2017-02-27T16:15:01 | D64: 37.8 | E64: 2017-02-27T07:30:01 | F64: 56.8 | G64: 36.9 | H64: 12.7 | I64: 13 | J64: 3.4 | K64: 804.8 | L64: 168.6 | M64: 0 | O64: 5.45 | P64: 185.7 | Q64: 02/27 | S64: 55.75399453 | T64: 55.13299294 | U64: 55.85825763
A65: 2017-02-28 | B65: 70.1 | C65: 2017-02-28T11:45:02 | D65: 51.5 | E65: 2017-02-28T06:30:03 | F65: 60.4 | G65: 31 | H65: 11.1 | I65: 17.8 | J65: 6.1 | K65: 913.1 | L65: 102 | M65: 0 | O65: 10.8 | P65: 191.15 | Q65: 02/28 | S65: 54.66419668 | T65: 55.3017301 | U65: 56.39391996
A66: 2017-03-01 | B66: 68.1 | C66: 2017-03-01T14:45:01 | D66: 41.4 | E66: 2017-03-01T03:45:05 | F66: 53.7 | G66: 44.7 | H66: 13 | I66: 7.5 | J66: 3.1 | K66: 790.2 | L66: 180.7 | M66: 0 | O66: 4.75 | P66: 201.95 | Q66: 03/01 | S66: 53.1666014 | T66: 55.20525697 | U66: 56.74870414
A67: 2017-03-02 | B67: 66 | C67: 2017-03-02T15:30:01 | D67: 35 | E67: 2017-03-02T07:00:02 | F67: 50 | G67: 46.5 | H67: 20.6 | I67: 8 | J67: 2.4 | K67: 872.2 | L67: 175.7 | M67: 0 | O67: 0.5 | P67: 206.7 | Q67: 03/02 | S67: 53.26925609 | T67: 55.84116949 | U67: 57.44463933
A68: 2017-03-03 | B68: 66 | C68: 2017-03-03T16:45:01 | D68: 37.1 | E68: 2017-03-03T05:30:02 | F68: 49.5 | G68: 41.4 | H68: 21.8 | I68: 8.2 | J68: 2.1 | K68: 910.2 | L68: 168.4 | M68: 0 | O68: 1.55 | P68: 207.2 | Q68: 03/03 | S68: 54.44286488 | T68: 56.73450769 | U68: 58.1390763
A69: 2017-03-04 | B69: 66.7 | C69: 2017-03-04T16:15:00 | D69: 43.2 | E69: 2017-03-04T02:00:01 | F69: 51.9 | G69: 81.4 | H69: 37.7 | I69: 8.7 | J69: 2.3 | K69: 933.6 | L69: 111 | M69: 0 | O69: 4.95 | P69: 208.75 | Q69: 03/04 | S69: 55.78267462 | T69: 57.77009257 | U69: 58.88819335
A70: 2017-03-05 | B70: 77.2 | C70: 2017-03-05T15:15:01 | D70: 41.9 | E70: 2017-03-05T07:45:01 | F70: 57.9 | G70: 95.4 | H70: 19.2 | I70: 14.8 | J70: 3.2 | K70: 837 | L70: 180.9 | M70: 0 | O70: 9.55 | P70: 213.7 | Q70: 03/05 | S70: 57.25639937 | T70: 58.25879341 | U70: 59.64346255
A71: 2017-03-06 | B71: 77 | C71: 2017-03-06T15:15:00 | D71: 45.2 | E71: 2017-03-06T03:30:01 | F71: 60.7 | G71: 51.4 | H71: 10 | I71: 19.4 | J71: 5.4 | K71: 895.6 | L71: 171.8 | M71: 0 | O71: 11.1 | P71: 223.25 | Q71: 03/06 | S71: 58.71170555 | T71: 58.10963621 | U71: 60.21173859
A72: 2017-03-07 | B72: 73.7 | C72: 2017-03-07T15:45:01 | D72: 43.6 | E72: 2017-03-07T23:15:00 | F72: 59.1 | G72: 32.6 | H72: 13.8 | I72: 9.5 | J72: 3 | K72: 825.3 | L72: 203.6 | M72: 0 | O72: 8.65 | P72: 234.35 | Q72: 03/07 | S72: 59.63582565 | T72: 58.2480791 | U72: 60.74999661
A73: 2017-03-08 | B73: 80.4 | C73: 2017-03-08T16:30:01 | D73: 42.3 | E73: 2017-03-08T02:00:01 | F73: 59.6 | G73: 67 | H73: 25.6 | I73: 10.5 | J73: 2.3 | K73: 813.6 | L73: 202.9 | M73: 0 | O73: 11.35 | P73: 243 | Q73: 03/08 | S73: 60.72913294 | T73: 59.1578357 | U73: 61.28372594
A74: 2017-03-09 | B74: 78.4 | C74: 2017-03-09T16:30:01 | D74: 54 | E74: 2017-03-09T23:30:01 | F74: 64.1 | G74: 73 | H74: 27.2 | I74: 13.2 | J74: 3.5 | K74: 579.5 | L74: 134.3 | M74: 0 | O74: 16.2 | P74: 254.35 | Q74: 03/09 | S74: 60.69666631 | T74: 59.94134094 | U74: 61.35147167
A75: 2017-03-10 | B75: 81.3 | C75: 2017-03-10T12:45:01 | D75: 46.1 | E75: 2017-03-10T04:15:00 | F75: 62.9 | G75: 78.2 | H75: 15 | I75: 11.5 | J75: 2.4 | K75: 924.8 | L75: 179.9 | M75: 0 | O75: 13.7 | P75: 270.55 | Q75: 03/10 | S75: 59.28023213 | T75: 60.70135237 | U75: 61.39910473
A76: 2017-03-11 | B76: 80.8 | C76: 2017-03-11T15:30:01 | D76: 49.3 | E76: 2017-03-11T05:00:01 | F76: 62.9 | G76: 85.5 | H76: 9.9 | I76: 12.9 | J76: 3.8 | K76: 857.5 | L76: 207.1 | M76: 0 | O76: 15.05 | P76: 284.25 | Q76: 03/11 | S76: 58.78657591 | T76: 61.26580869 | U76: 61.61245284
A77: 2017-03-12 | B77: 75.8 | C77: 2017-03-12T18:00:02 | D77: 41 | E77: 2017-03-12T08:30:02 | F77: 55.9 | G77: 93.4 | H77: 24.4 | I77: 12.7 | J77: 3.3 | K77: 872.2 | L77: 215.5 | M77: 0 | O77: 8.4 | P77: 299.3 | Q77: 03/12 | S77: 59.49478205 | T77: 61.85218976 | U77: 61.84629656
A78: 2017-03-13 | B78: 60.1 | C78: 2017-03-13T15:15:01 | D78: 38.9 | E78: 2017-03-13T23:30:02 | F78: 52.2 | G78: 88.6 | H78: 33.1 | I78: 12 | J78: 3.7 | K78: 828.3 | L78: 223.9 | M78: 0 | O78: 0 | P78: 307.7 | Q78: 03/13 | S78: 60.96594144 | T78: 63.05174952 | U78: 62.20679814
A79: 2017-03-14 | B79: 81.4 | C79: 2017-03-14T16:00:01 | D79: 37.8 | E79: 2017-03-14T05:00:01 | F79: 59.8 | G79: 85.5 | H79: 11.1 | I79: 14.8 | J79: 3.8 | K79: 851.7 | L79: 231.7 | M79: 0 | O79: 9.6 | P79: 307.7 | Q79: 03/14 | S79: 63.9496142 | T79: 64.57455707 | U79: 62.3960593
A80: 2017-03-15 | B80: 85.5 | C80: 2017-03-15T15:30:01 | D80: 51.4 | E80: 2017-03-15T05:45:01 | F80: 69.8 | G80: 41.3 | H80: 7.8 | I80: 10 | J80: 3.3 | K80: 857.5 | L80: 232.5 | M80: 0 | O80: 18.45 | P80: 317.3 | Q80: 03/15 | S80: 65.77290538 | T80: 65.78298894 | U80: 62.50695613
A81: 2017-03-16 | B81: 86.8 | C81: 2017-03-16T15:15:01 | D81: 48.2 | E81: 2017-03-16T07:45:03 | F81: 67.4 | G81: 54 | H81: 9.6 | I81: 13.8 | J81: 3.7 | K81: 889.7 | L81: 228.9 | M81: 0 | O81: 17.5 | P81: 335.75 | Q81: 03/16 | S81: 66.44120872 | T81: 66.21133249 | U81: 62.5815702
A82: 2017-03-17 | B82: 84.8 | C82: 2017-03-17T17:15:00 | D82: 49.6 | E82: 2017-03-17T08:00:01 | F82: 71.4 | G82: 25.8 | H82: 7.9 | I82: 14.8 | J82: 4.3 | K82: 860.4 | L82: 236.8 | M82: 0 | O82: 17.2 | P82: 353.25 | Q82: 03/17 | S82: 67.63767547 | T82: 65.83599859 | U82: 62.5374691
A83: 2017-03-18 | B83: 87 | C83: 2017-03-18T15:15:00 | D83: 52.7 | E83: 2017-03-18T07:30:01 | F83: 67.4 | G83: 51.2 | H83: 12.6 | I83: 10.5 | J83: 2.7 | K83: 992.1 | L83: 214 | M83: 0 | O83: 19.85 | P83: 370.45 | Q83: 03/18 | S83: 67.97882708 | T83: 65.39164167 | U83: 61.89852813
A84: 2017-03-19 | B84: 86 | C84: 2017-03-19T14:00:10 | D84: 52.2 | E84: 2017-03-19T03:30:02 | F84: 68.2 | G84: 65.1 | H84: 15.2 | I84: 16.9 | J84: 3.9 | K84: 983.4 | L84: 213.8 | M84: 0 | O84: 19.1 | P84: 390.3 | Q84: 03/19 | S84: 68.89395875 | T84: 65.4066972 | U84: 61.71980077
A85: 2017-03-20 | B85: 88.2 | C85: 2017-03-20T17:15:01 | D85: 54.5 | E85: 2017-03-20T04:00:01 | F85: 70.3 | G85: 51.3 | H85: 4.7 | I85: 14.2 | J85: 3.6 | K85: 866.3 | L85: 237.4 | M85: 0 | O85: 21.35 | P85: 409.4 | Q85: 03/20 | S85: 69.44435162 | T85: 65.36366436 | U85: 61.61436875
A86: 2017-03-21 | B86: 87.4 | C86: 2017-03-21T16:45:00 | D86: 55.7 | E86: 2017-03-21T04:15:00 | F86: 70.1 | G86: 50 | H86: 13.7 | I86: 11.8 | J86: 2.4 | K86: 1012.6 | L86: 179.1 | M86: 0 | O86: 21.55 | P86: 430.75 | Q86: 03/21 | S86: 67.58816249 | T86: 64.88445869 | U86: 61.05536572
A87: 2017-03-22 | B87: 89.8 | C87: 2017-03-22T16:00:12 | D87: 56.4 | E87: 2017-03-22T07:45:00 | F87: 71.6 | G87: 55.8 | H87: 7.1 | I87: 16.6 | J87: 3.4 | K87: 872.2 | L87: 228.7 | M87: 0 | O87: 23.1 | P87: 452.3 | Q87: 03/22 | S87: 66.03235327 | T87: 63.6651188 | U87: 60.65999886
A88: 2017-03-23 | B88: 87.9 | C88: 2017-03-23T15:45:00 | D88: 52.6 | E88: 2017-03-23T07:45:01 | F88: 69.6 | G88: 73.3 | H88: 0 | I88: 32.6 | J88: 9.9 | K88: 936.5 | L88: 239.2 | M88: 0 | O88: 20.25 | P88: 475.4 | Q88: 03/23 | S88: 64.46640962 | T88: 62.53059412 | U88: 60.47645054
A89: 2017-03-24 | B89: 70.5 | C89: 2017-03-24T17:00:02 | D89: 44.3 | E89: 2017-03-24T08:00:01 | F89: 55.5 | G89: 33.1 | H89: 15.1 | I89: 23 | J89: 8.5 | K89: 875.1 | L89: 249.7 | M89: 0 | O89: 7.4 | P89: 495.65 | Q89: 03/24 | S89: 62.95527505 | T89: 62.04521156 | U89: 60.47621585
A90: 2017-03-25 | B90: 79.9 | C90: 2017-03-25T16:00:02 | D90: 42.4 | E90: 2017-03-25T06:15:01 | F90: 59.6 | G90: 50.4 | H90: 8 | I90: 13.5 | J90: 3.9 | K90: 889.7 | L90: 253.8 | M90: 0 | O90: =IF((B90+D90)/2-50>0,(B90+D90)/2-50,0) -> 11.15 | P90: 503.05 | Q90: 03/25 | S90: 63.05057685 | T90: 62.10582576 | U90: 60.87701405
A91: 2017-03-26 | B91: 76.7 | C91: 2017-03-26T16:00:10 | D91: 43.9 | E91: 2017-03-26T04:45:00 | F91: 63.5 | G91: 22.5 | H91: 11.7 | I91: 17 | J91: 6 | K91: 878 | L91: 236.6 | M91: 0 | O91: 10.3 | P91: 514.2 | Q91: 03/26 | S91: 61.46746593 | T91: 61.01343803 | U91: 61.16339822
A92: 2017-03-27 | B92: 81.2 | C92: 2017-03-27T16:00:01 | D92: 44.9 | E92: 2017-03-27T07:00:02 | F92: 64 | G92: 32.6 | H92: 11.6 | I92: 16.6 | J92: 4 | K92: 889.7 | L92: 252.3 | M92: 0 | O92: 13.05 | P92: 524.5 | Q92: =TEXT(A92,"mm/dd") -> 03/27 | S92: 60.06761683 | T92: 60.36055409 | U92: 61.20697711
A93: 2017-03-28 | B93: 80 | C93: 2017-03-28T16:00:01 | D93: 45.4 | E93: 2017-03-28T08:15:01 | F93: 60.8 | G93: 56.2 | H93: 11.4 | I93: 24.5 | J93: 6 | K93: 1082.9 | L93: 200.5 | M93: 0 | O93: 12.7 | P93: =P92+O92 -> 537.55 | Q93: 03/28 | S93: 59.94080852 | T93: 59.90034674 | U93: 61.22828938
A94: 2017-03-29 | B94: 65.6 | C94: 2017-03-29T14:00:01 | D94: 43.5 | E94: 2017-03-29T23:45:01 | F94: 51.5 | G94: 54.1 | H94: 28.1 | I94: 12.8 | J94: 6.3 | K94: 1185.3 | L94: 182 | M94: 0 | O94: 4.55 | P94: 550.25 | Q94: 03/29 | S94: 59.41084161 | T94: 58.91473927 | U94: 61.26446652
A95: 2017-03-30 | B95: 76 | C95: 2017-03-30T17:00:01 | D95: 35.7 | E95: 2017-03-30T03:30:02 | F95: 56.7 | G95: 63.3 | H95: 10.7 | I95: 21.9 | J95: 4.7 | K95: 904.3 | L95: 257.6 | M95: 0 | O95: 5.85 | P95: 554.8 | Q95: 03/30 | S95: =(S92+S93+S94+F95+F96+F97+F98)/7 -> 58.40275242 | T95: 58.96471397 | U95: 61.67957643
A96: 2017-03-31 | B96: 81.9 | C96: 2017-03-31T15:00:02 | D96: 46.1 | E96: 2017-03-31T07:45:01 | F96: 66 | G96: 23 | H96: 1.8 | I96: 25.2 | J96: 7.3 | K96: 933.6 | L96: 262.4 | M96: 0 | O96: 14 | P96: 560.65 | Q96: 03/31 | S96: 58.36491465 | T96: 59.34698863 | U96: 62.05611257
A97: 2017-04-01 | B97: 74.5 | C97: 2017-04-01T15:15:01 | D97: 45.3 | E97: 2017-04-01T06:00:01 | F97: 60.2 | G97: 61.4 | H97: 8.1 | I97: 18 | J97: 4.6 | K97: 927.8 | L97: 232.7 | M97: 0 | O97: 9.9 | P97: 574.65 | Q97: 04/01 | R97: =O97 -> 9.9 | S97: 57.5826441 | T97: 59.46044043 | U97: 62.01980748
A98: 2017-04-02 | B98: 57.6 | C98: 2017-04-02T17:30:01 | D98: 40.1 | E98: 2017-04-02T09:45:01 | F98: 46.5 | G98: 92.5 | H98: 51.1 | I98: 15.8 | J98: 4.2 | K98: 1050.7 | L98: 131.7 | M98: 0.6 | O98: 0 | P98: 584.55 | Q98: 04/02 | R98: =O98+R97 -> 9.9 | S98: 56.00718731 | T98: 59.85741474 | U98: 62.12568937
A99: 2017-04-03 | B99: 73 | C99: 2017-04-03T16:15:00 | D99: 43 | E99: 2017-04-03T00:15:00 | F99: 58.1 | G99: 64.5 | H99: 20.2 | I99: 15.5 | J99: 5.5 | K99: 927.8 | L99: 261 | M99: 0 | O99: 8 | P99: 584.55 | Q99: 04/03 | R99: =O99+R98 -> 17.9 | S99: 57.16496372 | T99: =(T92+T93+T94+T95+T96+T97+T98+F99+F100+F101+F102+F103+F104+F105+F106)/15 -> 61.28034652 | U99: 62.89108167
A100: 2017-04-04 | B100: 72.7 | C100: 2017-04-04T16:00:01 | D100: 51.4 | E100: 2017-04-04T23:45:01 | F100: 62.1 | G100: 33.8 | H100: 9.4 | I100: 27 | J100: 10.7 | K100: 945.3 | L100: 267.7 | M100: 0 | O100: 12.05 | P100: 592.55 | Q100: 04/04 | R100: 29.95 | S100: 58.12211359 | T100: 61.82166602 | U100: 63.36434879
A101: 2017-04-05 | B101: 68.2 | C101: 2017-04-05T17:45:01 | D101: 36.3 | E101: 2017-04-05T07:30:02 | F101: 51 | G101: 62.5 | H101: 15.7 | I101: 8.7 | J101: 2.9 | K101: 936.5 | L101: 270.2 | M101: 0 | O101: 2.25 | P101: 604.6 | Q101: 04/05 | R101: 32.2 | S101: 59.38489495 | T101: 62.16308731 | U101: 63.77563847
A102: 2017-04-06 | B102: 74.4 | C102: 2017-04-06T14:00:01 | D102: 39.2 | E102: 2017-04-06T04:00:01 | F102: 57 | G102: 45.2 | H102: 16.9 | I102: 13.5 | J102: 2.8 | K102: 1041.9 | L102: 226.6 | M102: 0 | O102: 6.8 | P102: 606.85 | Q102: 04/06 | R102: 39 | S102: 62.41028175 | T102: 63.17297718 | U102: 64.5633892
A103: 2017-04-07 | B103: 84.9 | C103: 2017-04-07T17:00:01 | D103: 49.3 | E103: 2017-04-07T04:00:01 | F103: 66 | G103: 41.6 | H103: 9.9 | I103: 14.1 | J103: 3.5 | K103: 927.8 | L103: 275.1 | M103: 0 | O103: 17.1 | P103: 613.65 | Q103: 04/07 | R103: 56.1 | S103: 64.87389861 | T103: 64.02019472 | U103: 64.63446631
A104: 2017-04-08 | B104: 86.2 | C104: 2017-04-08T15:30:01 | D104: 52.6 | E104: 2017-04-08T07:00:01 | F104: 70.4 | G104: 50.3 | H104: 6.2 | I104: 18 | J104: 5.1 | K104: 951.2 | L104: 284.1 | M104: 0 | O104: 19.4 | P104: 630.75 | Q104: 04/08 | R104: 75.5 | S104: 65.73843933 | T104: 64.54507513 | U104: 64.52666037
A105: 2017-04-09 | B105: 85.8 | C105: 2017-04-09T16:15:00 | D105: 48.5 | E105: 2017-04-09T07:45:01 | F105: 68.8 | G105: 58.5 | H105: 9.1 | I105: 25.9 | J105: 6.1 | K105: 960 | L105: 269.5 | M105: 0 | O105: 17.15 | P105: 650.15 | Q105: 04/09 | R105: 92.65 | S105: 65.9175171 | T105: 64.55071744 | U105: 64.69280374
A106: 2017-04-10 | B106: 82.9 | C106: 2017-04-10T15:15:01 | D106: 53 | E106: 2017-04-10T03:00:01 | F106: 69 | G106: 53.1 | H106: 6.4 | I106: 13.8 | J106: 4.5 | K106: 957 | L106: 280.9 | M106: 0 | O106: 17.95 | P106: 667.3 | Q106: 04/10 | R106: 110.6 | S106: 65.57569358 | T106: 64.54360429 | U106: 65.01589373
A107: 2017-04-11 | B107: 79.6 | C107: 2017-04-11T16:00:02 | D107: 56.6 | E107: 2017-04-11T08:45:01 | F107: 65.3 | G107: 86.8 | H107: 39.4 | I107: 13.5 | J107: 5.4 | K107: 992.1 | L107: 248.5 | M107: 0 | O107: 18.1 | P107: 685.25 | Q107: 04/11 | R107: 128.7 | S107: 65.17595 | T107: 64.82782147 | U107: =(U92+U93+U94+U95+U96+U97+U98+U99+U100+U101+U102+U103+U104+U105+U106+F107+F108+F109+F110+F111+F112+F113+F114+F115+F116+F117+F118+F119+F120+F121+F122)/31 -> 65.03694197
A108: 2017-04-12 | B108: 83.9 | C108: 2017-04-12T16:15:00 | D108: 52.9 | E108: 2017-04-12T05:30:01 | F108: 65.3 | G108: 95.9 | H108: 0 | I108: 18.5 | J108: 5.4 | K108: 989.2 | L108: 206.7 | M108: 0.1 | O108: 18.4 | P108: 703.35 | Q108: 04/12 | R108: 147.1 | S108: 65.65273724 | T108: 65.44823184 | U108: 65.30887632
A109: 2017-04-13 | B109: 77.5 | C109: 2017-04-13T17:15:03 | D109: 51.8 | E109: 2017-04-13T06:00:02 | F109: 62.9 | G109: 96.9 | H109: 0 | I109: 140.1 | J109: 5 | K109: 1068.2 | L109: 235.6 | M109: 0.2 | O109: 14.65 | P109: 721.75 | Q109: 04/13 | R109: 161.75 | S109: 65.62919726 | T109: 66.18724147 | U109: 65.71470171
A110: 2017-04-14 | B110: 81.4 | C110: 2017-04-14T18:15:01 | D110: 53.5 | E110: 2017-04-14T07:30:03 | F110: 65.5 | G110: 90.5 | H110: 28.5 | I110: 13.5 | J110: 3.5 | K110: 936.5 | L110: 196.7 | M110: 0 | O110: 17.45 | P110: 736.4 | Q110: 04/14 | R110: 179.2 | S110: 65.7939835 | T110: 67.04152576 | U110: 65.57438671
A111: 2017-04-15 | B111: 84.5 | C111: 2017-04-15T16:45:01 | D111: 56.5 | E111: 2017-04-15T05:30:02 | F111: 69.2 | G111: 84.4 | H111: 14.2 | I111: 12.5 | J111: 3.1 | K111: 863.4 | L111: 223.7 | M111: 0 | O111: 20.5 | P111: 753.85 | Q111: 04/15 | R111: 199.7 | S111: 66.52513114 | T111: 66.56294783 | U111: 65.23873543
A112: 2017-04-16 | B112: 86.7 | C112: 2017-04-16T15:00:02 | D112: 53 | E112: 2017-04-16T23:30:01 | F112: 65.4 | G112: 87.7 | H112: 13.8 | I112: 18.5 | J112: 3.5 | K112: 1088.7 | L112: 176.4 | M112: 0 | O112: 19.85 | P112: 774.35 | Q112: 04/16 | R112: 219.55 | S112: 66.99261599 | T112: 65.98413934 | U112: 65.18978778
A113: 2017-04-17 | B113: 82.4 | C113: 2017-04-17T13:45:00 | D113: 48.4 | E113: 2017-04-17T07:00:01 | F113: 64 | G113: 65.1 | H113: 21.6 | I113: 54.5 | J113: 3 | K113: 1050.7 | L113: 180.5 | M113: 0 | O113: 15.4 | P113: 794.2 | Q113: 04/17 | R113: 234.95 | S113: 68.28739009 | T113: 66.48636747 | U113: 65.49204521
A114: 2017-04-18 | B114: 88.3 | C114: 2017-04-18T16:15:01 | D114: 51.7 | E114: 2017-04-18T03:00:03 | F114: 70 | G114: 78 | H114: 8.5 | I114: 21 | J114: 4.9 | K114: 945.3 | L114: 280.6 | M114: 0 | O114: 20 | P114: 809.6 | Q114: 04/18 | R114: 254.95 | S114: 69.88644817 | T114: 67.34921834 | U114: 65.7845083
A115: 2017-04-19 | B115: 88.8 | C115: 2017-04-19T16:30:01 | D115: 53.8 | E115: 2017-04-19T05:00:01 | F115: 71.6 | G115: 71.4 | H115: 8 | I115: 17.2 | J115: 4.6 | K115: 951.2 | L115: 287.1 | M115: 0 | O115: 21.3 | P115: 829.6 | Q115: 04/19 | R115: 276.25 | S115: 68.26663632 | T115: 67.23731147 | U115: 65.57139303
A116: 2017-04-20 | B116: 87.7 | C116: 2017-04-20T13:45:00 | D116: 55.3 | E116: 2017-04-20T07:00:01 | F116: 73.1 | G116: 53.1 | H116: 13.2 | I116: 18.8 | J116: 5.3 | K116: 951.2 | L116: 281.4 | M116: 0 | O116: 21.5 | P116: 850.9 | Q116: 04/20 | R116: 297.75 | S116: 66.57721066 | T116: 67.24325011 | U116: 65.47162027
A117: 2017-04-21 | B117: 88.8 | C117: 2017-04-21T17:30:01 | D117: 54.4 | E117: 2017-04-21T07:30:02 | F117: 72.7 | G117: 65.3 | H117: 3.2 | I117: 21.8 | J117: 6.3 | K117: 974.6 | L117: 297.7 | M117: 0 | O117: 21.6 | P117: 872.4 | Q117: 04/21 | R117: 319.35 | S117: 66.10432788 | T117: 67.36031735 | U117: 65.51342613
A118: 2017-04-22 | B118: 70.7 | C118: 2017-04-22T00:30:01 | D118: 47.1 | E118: 2017-04-22T10:15:01 | F118: 55.3 | G118: 85.2 | H118: 4.2 | I118: 17.2 | J118: 6.8 | K118: 1097.5 | L118: 238.7 | M118: 0 | O118: 8.9 | P118: 894 | Q118: 04/22 | R118: 328.25 | S118: 65.89259641 | T118: 66.14157013 | U118: 65.5505241
A119: 2017-04-23 | B119: 77.7 | C119: 2017-04-23T16:30:01 | D119: 43.7 | E119: 2017-04-23T07:30:02 | F119: 58.5 | G119: 68.7 | H119: 20.2 | I119: 13.5 | J119: 4.5 | K119: 951.2 | L119: 290.6 | M119: 0 | O119: 10.7 | P119: 902.9 | Q119: 04/23 | R119: 338.95 | S119: 67.05344785 | T119: 65.84014495 | U119: 66.05104209
A120: 2017-04-24 | B120: 89.1 | C120: 2017-04-24T16:45:01 | D120: 54.3 | E120: 2017-04-24T01:45:01 | F120: 71.5 | G120: 49.8 | H120: 6.5 | I120: 26.2 | J120: 8.6 | K120: 962.9 | L120: 259 | M120: 0 | O120: 21.7 | P120: 913.6 | Q120: 04/24 | R120: 360.65 | S120: 68.75005316 | T120: 66.23054532 | U120: 66.4550544
A121: 2017-04-25 | B121: 87.8 | C121: 2017-04-25T16:45:00 | D121: 63.8 | E121: 2017-04-25T08:00:01 | F121: 75 | G121: 27.5 | H121: 6.9 | I121: 35.2 | J121: 16.3 | K121: 1044.8 | L121: 261.3 | M121: 0 | O121: 25.8 | P121: 935.3 | Q121: 04/25 | R121: 386.45 | S121: 69.45658535 | T121: 66.22015718 | U121: 66.35061088
A122: 2017-04-26 | B122: 75.2 | C122: 2017-04-26T17:45:02 | D122: 52.9 | E122: 2017-04-26T23:45:01 | F122: 65.8 | G122: 36.5 | H122: 11.6 | I122: 26.2 | J122: 10.4 | K122: 960 | L122: 283.3 | M122: 0 | O122: 14.05 | P122: 961.1 | Q122: 04/26 | R122: 400.5 | S122: 66.98001234 | T122: 65.7915531 | U122: 66.09366627
A123: 2017-04-27 | B123: 86.8 | C123: 2017-04-27T16:30:06 | D123: 51.8 | E123: 2017-04-27T03:30:01 | F123: 69.9 | G123: 37.7 | H123: 13.8 | I123: 27.8 | J123: 8.8 | K123: 974.6 | L123: 269.1 | M123: 0 | O123: 19.3 | P123: 975.15 | Q123: 04/27 | R123: 419.8 | S123: 64.88380726 | T123: 65.34183588 | U123: 66.1503348
A124: 2017-04-28 | B124: 84.9 | C124: 2017-04-28T16:15:01 | D124: 61.1 | E124: 2017-04-28T07:15:01 | F124: 73.8 | G124: 35.6 | H124: 11.1 | I124: 27 | J124: 9.9 | K124: 1053.6 | L124: 245.9 | M124: 0 | O124: 23 | P124: 994.45 | Q124: 04/28 | R124: 442.8 | S124: 63.56005785 | T124: 64.97507493 | U124: 66.23876894
A125: 2017-04-29 | B125: 72.8 | C125: 2017-04-29T00:00:01 | D125: 38.1 | E125: 2017-04-29T23:15:01 | F125: 54.1 | G125: 76.4 | H125: 20.7 | I125: 22.5 | J125: 7 | K125: 1106.3 | L125: 129.2 | M125: 0 | O125: 5.45 | P125: 1017.45 | Q125: 04/29 | R125: 448.25 | S125: 62.40341106 | T125: 64.74272543 | U125: 66.31696466
A126: 2017-04-30 | B126: 70.4 | C126: 2017-04-30T15:45:01 | D126: 28.9 | E126: 2017-04-30T06:00:01 | F126: 51.2 | G126: 87.1 | H126: 9.2 | I126: 27.8 | J126: 8.7 | K126: 1000.9 | L126: 314.3 | M126: 0 | O126: 0 | P126: 1022.9 | Q126: 04/30 | R126: 448.25 | S126: 63.97818231 | T126: 65.90280245 | U126: 67.01511233
A127: 2017-05-01 | B127: 83.9 | C127: 2017-05-01T17:15:01 | D127: 40.9 | E127: 2017-05-01T05:30:02 | F127: 64.5 | G127: 22.8 | H127: 6.5 | I127: 30 | J127: 5.1 | K127: 989.2 | L127: 317.2 | M127: 0 | O127: 12.4 | P127: 1022.9 | Q127: 05/01 | R127: 460.65 | S127: 65.17737875 | T127: 67.15364629 | U127: 67.79822126
A128: 2017-05-02 | B128: 89 | C128: 2017-05-02T15:00:03 | D128: 52.5 | E128: 2017-05-02T05:45:01 | F128: 71.6 | G128: 21.3 | H128: 8 | I128: 16.5 | J128: 5 | K128: 986.3 | L128: 278 | M128: 0 | O128: 20.75 | P128: 1035.3 | Q128: 05/02 | R128: 481.4 | S128: 65.66556745 | T128: 67.54851968 | U128: 67.9920417
A129: 2017-05-03 | B129: 78.5 | C129: 2017-05-03T15:45:01 | D129: 58.7 | E129: 2017-05-03T02:45:01 | F129: 69.7 | G129: 42.9 | H129: 7.5 | I129: 32.2 | J129: 8.8 | K129: 957 | L129: 308.2 | M129: 0 | O129: 18.6 | P129: 1056.05 | Q129: 05/03 | R129: 500 | S129: 66.28873264 | T129: 67.29707718 | U129: 68.07913836
A130: 2017-05-04 | B130: 77.8 | C130: 2017-05-04T17:30:01 | D130: 45 | E130: 2017-05-04T07:15:00 | F130: 60.5 | G130: 72.3 | H130: 22 | I130: 17.2 | J130: 7.4 | K130: 968.7 | L130: 317.1 | M130: 0 | O130: 11.4 | P130: 1074.65 | Q130: 05/04 | R130: 511.4 | S130: 67.07595412 | T130: 67.13077879 | U130: 68.27573933
A131: 2017-05-05 | B131: 85.9 | C131: 2017-05-05T16:15:03 | D131: 45.7 | E131: 2017-05-05T04:30:01 | F131: 66.3 | G131: 44.7 | H131: 13.5 | I131: 22.5 | J131: 3.6 | K131: 986.3 | L131: 322.7 | M131: 0 | O131: 15.8 | P131: 1086.05 | Q131: 05/05 | R131: 527.2 | S131: 68.69003632 | T131: 67.65004165 | U131: 68.5597505
A132: 2017-05-06 | B132: 89.2 | C132: 2017-05-06T16:15:00 | D132: 55 | E132: 2017-05-06T07:15:00 | F132: 72.7 | G132: 30 | H132: 8.1 | I132: 23.2 | J132: 6 | K132: 1071.2 | L132: 306.6 | M132: 0 | O132: 22.1 | P132: 1101.85 | Q132: 05/06 | R132: 549.3 | S132: 69.57924615 | T132: 68.19503943 | U132: 68.6593676
A133: 2017-05-07 | B133: 89.3 | C133: 2017-05-07T15:00:01 | D133: 54.7 | E133: 2017-05-07T07:00:02 | F133: 72.9 | G133: 56.2 | H133: 8.4 | I133: 26.2 | J133: 7.2 | K133: 974.6 | L133: 320.6 | M133: 0 | O133: 22 | P133: 1123.95 | Q133: 05/07 | R133: 571.3 | S133: 69.16360523 | T133: 68.6251937 | U133: 68.60923668
A134: 2017-05-08 | B134: 87.4 | C134: 2017-05-08T16:00:02 | D134: 53.9 | E134: 2017-05-08T06:30:02 | F134: 69.9 | G134: 77.2 | H134: 8.2 | I134: 27 | J134: 6.3 | K134: 983.4 | L134: 306.6 | M134: 0 | O134: 20.65 | P134: 1145.95 | Q134: 05/08 | R134: 591.95 | S134: 68.43326967 | T134: 68.94668645 | U134: 68.35629193
A135: 2017-05-09 | B135: 87.4 | C135: 2017-05-09T17:30:02 | D135: 52.9 | E135: 2017-05-09T04:00:01 | F135: 69.5 | G135: 94.2 | H135: 6.4 | I135: 29.2 | J135: 9.4 | K135: 977.5 | L135: 324.7 | M135: 0 | O135: 20.15 | P135: 1166.6 | Q135: 05/09 | R135: 612.1 | S135: 67.91087444 | T135: 69.31955579 | U135: 68.38549354
A136: 2017-05-10 | B136: 78.5 | C136: 2017-05-10T17:00:01 | D136: 49.8 | E136: 2017-05-10T07:45:01 | F136: 66.5 | G136: 81.5 | H136: 13.3 | I136: 26.2 | J136: 8.8 | K136: 983.4 | L136: 323.5 | M136: 0 | O136: 14.15 | P136: 1186.75 | Q136: 05/10 | R136: 626.25 | S136: 68.00110705 | T136: 69.3309582 | U136: 68.79937867
A137: 2017-05-11 | B137: 81.8 | C137: 2017-05-11T17:00:01 | D137: 46.5 | E137: 2017-05-11T05:30:02 | F137: 65.7 | G137: 39.6 | H137: 10.5 | I137: 21.8 | J137: 6.5 | K137: 986.3 | L137: 328.4 | M137: 0 | O137: 14.15 | P137: 1200.9 | Q137: 05/11 | R137: 640.4 | S137: 69.14932159 | T137: 69.8198836 | U137: 69.30095182
A138: 2017-05-12 | B138: 82 | C138: 2017-05-12T16:45:01 | D138: 52 | E138: 2017-05-12T07:30:02 | F138: 66.5 | G138: 60.1 | H138: 25.8 | I138: 15.8 | J138: 6.9 | K138: 1065.3 | L138: 317.3 | M138: 0 | O138: 17 | P138: 1215.05 | Q138: 05/12 | R138: 657.4 | S138: 70.58018615 | T138: 70.51915725 | U138: 69.85602555
A139: 2017-05-13 | B139: 89.2 | C139: 2017-05-13T16:45:01 | D139: 52.2 | E139: 2017-05-13T06:00:01 | F139: 71.8 | G139: 48.7 | H139: 15 | I139: 18.8 | J139: 6 | K139: 971.7 | L139: 290.8 | M139: 0 | O139: 20.7 | P139: 1232.05 | Q139: 05/13 | R139: 678.1 | S139: 71.99008783 | T139: 70.7170983 | U139: 70.18846719
A140: 2017-05-14 | B140: 92.8 | C140: 2017-05-14T15:30:02 | D140: 59.9 | E140: 2017-05-14T02:30:02 | F140: 75.7 | G140: 60.1 | H140: 9.8 | I140: 21.8 | J140: 7.2 | K140: 1012.6 | L140: 292.6 | M140: 0 | O140: 26.35 | P140: 1252.75 | Q140: 05/14 | R140: 704.45 | S140: 72.00279937 | T140: 70.51856889 | U140: 70.19007036
A141: 2017-05-15 | B141: 89.8 | C141: 2017-05-15T15:45:01 | D141: 58.6 | E141: 2017-05-15T07:15:00 | F141: 75 | G141: 63.2 | H141: 5.6 | I141: 24 | J141: 6.3 | K141: 1188.2 | L141: 272.8 | M141: 0 | O141: 24.2 | P141: 1279.1 | Q141: 05/15 | R141: 728.65 | S141: 71.85329619 | T141: 70.13146057 | U141: 70.01178345
A142: 2017-05-16 | B142: 88.6 | C142: 2017-05-16T15:30:01 | D142: 54 | E142: 2017-05-16T06:30:03 | F142: 73.7 | G142: 84.9 | H142: 2.5 | I142: 41.2 | J142: 14.2 | K142: 989.2 | L142: 325.1 | M142: 0 | O142: 21.3 | P142: 1303.3 | Q142: 05/16 | R142: 749.95 | S142: 71.82088334 | T142: 69.34377884 | U142: 69.88909542
A143: 2017-05-17 | B143: 83.2 | C143: 2017-05-17T17:45:01 | D143: 51.3 | E143: 2017-05-17T07:15:00 | F143: 67.9 | G143: 35.2 | H143: 8.8 | I143: 29.2 | J143: 11.1 | K143: 992.1 | L143: 332.2 | M143: 0 | O143: 17.25 | P143: 1324.6 | Q143: 05/17 | R143: 767.2 | S143: 70.78242556 | T143: 68.99872704 | U143: 69.74686555
A144: 2017-05-18 | B144: 87.6 | C144: 2017-05-18T17:00:02 | D144: 56.7 | E144: 2017-05-18T04:00:01 | F144: 71.8 | G144: 22.8 | H144: 7.7 | I144: 24 | J144: 8.8 | K144: 983.4 | L144: 327 | M144: 0 | O144: 22.15 | P144: 1341.85 | Q144: 05/18 | R144: 789.35 | S144: 70.37951501 | T144: 69.80991163 | U144: 69.77444051
A145: 2017-05-19 | B145: 83.7 | C145: 2017-05-19T17:00:01 | D145: 59.3 | E145: 2017-05-19T06:15:01 | F145: 73.5 | G145: 25.4 | H145: 9.7 | I145: 24.8 | J145: 12.2 | K145: 977.5 | L145: 324 | M145: 0 | O145: 21.5 | P145: 1364 | Q145: 05/19 | R145: 810.85 | S145: 69.6261177 | T145: 70.32924683 | U145: 69.60977284
A146: 2017-05-20 | B146: 78.1 | C146: 2017-05-20T17:30:01 | D146: 56.5 | E146: 2017-05-20T07:30:01 | F146: 66.6 | G146: 65.3 | H146: 11.6 | I146: 28.5 | J146: 10.1 | K146: 968.7 | L146: 317.9 | M146: 0 | O146: 17.3 | P146: 1385.5 | Q146: 05/20 | R146: 828.15 | S146: 67.66972261 | T146: 70.72991947 | U146: 69.55280618
A147: 2017-05-21 | B147: 79.4 | C147: 2017-05-21T17:15:01 | D147: 56.8 | E147: 2017-05-21T23:45:01 | F147: 66.3 | G147: 89.2 | H147: 36.6 | I147: 18 | J147: 6.2 | K147: 1205.8 | L147: 203.5 | M147: 0 | O147: 18.1 | P147: 1402.8 | Q147: 05/21 | R147: 846.25 | S147: 67.49647933 | T147: 71.16410755 | U147: 69.85580798
A148: 2017-05-22 | B148: 89.7 | C148: 2017-05-22T15:15:01 | D148: 51.4 | E148: 2017-05-22T03:15:00 | F148: 68 | G148: 89.7 | H148: 13.8 | I148: 26.2 | J148: 6.5 | K148: 1024.3 | L148: 296.2 | M148: 0 | O148: 20.55 | P148: 1420.9 | Q148: 05/22 | R148: 866.8 | S148: 69.09890281 | T148: 71.31381013 | U148: 70.19440283
A149: 2017-05-23 | B149: 72.8 | C149: 2017-05-23T09:45:01 | D149: 52.2 | E149: 2017-05-23T23:45:01 | F149: 62 | G149: 92.4 | H149: 42.9 | I149: 25.5 | J149: 10 | K149: 1024.3 | L149: 323.3 | M149: 0 | O149: 12.5 | P149: 1441.45 | Q149: 05/23 | R149: 879.3 | S149: 70.68072925 | T149: 71.2793001 | U149: 70.45844045
A150: 2017-05-24 | B150: 88.4 | C150: 2017-05-24T16:00:10 | D150: 48.3 | E150: 2017-05-24T05:30:02 | F150: 68.5 | G150: 73.5 | H150: 11.7 | I150: 27 | J150: 7.8 | K150: 983.4 | L150: 329.3 | M150: 0 | O150: 18.35 | P150: 1453.95 | Q150: 05/24 | R150: 897.65 | S150: 73.63944448 | T150: 71.82166818 | U150: 70.86496137
A151: 2017-05-25 | B151: 95.8 | C151: 2017-05-25T16:15:01 | D151: 60.1 | E151: 2017-05-25T02:45:00 | F151: 80.4 | G151: 23.2 | H151: 6.7 | I151: 39 | J151: 10.5 | K151: 1173.6 | L151: 300.5 | M151: 0 | O151: 27.95 | P151: 1472.3 | Q151: 05/25 | R151: 925.6 | S151: 75.17415379 | T151: 71.92319759 | U151: 71.1965571
A152: 2017-05-26 | B152: 91.6 | C152: 2017-05-26T17:15:08 | D152: 63.1 | E152: 2017-05-26T07:00:03 | F152: 79.6 | G152: 28.6 | H152: 7.6 | I152: 23.2 | J152: 8.9 | K152: 1118 | L152: 295.7 | M152: 0 | O152: 27.35 | P152: 1500.25 | Q152: 05/26 | R152: 952.95 | S152: 74.2563325 | T152: 71.17074999 | U152: 71.33840157
A153: 2017-05-27 | B153: 93.2 | C153: 2017-05-27T15:15:00 | D153: 62.7 | E153: 2017-05-27T06:00:01 | F153: 79.7 | G153: 29.2 | H153: 10.6 | I153: 32.2 | J153: 9.5 | K153: 986.3 | L153: 326.2 | M153: 0 | O153: 27.95 | P153: 1527.6 | Q153: 05/27 | R153: 980.9 | S153: 72.86713297 | T153: 70.25351687 | U153: 71.51057737
A154: 2017-05-28 | B154: 80.6 | C154: 2017-05-28T18:15:00 | D154: 65.8 | E154: 2017-05-28T23:45:01 | F154: 73.1 | G154: 50.3 | H154: 17.2 | I154: 30.8 | J154: 9.4 | K154: 992.1 | L154: 316.8 | M154: 0 | O154: =IF((B154+D154)/2-50>0,(B154+D154)/2-50,0) -> 23.2 | P154: 1555.55 | Q154: 05/28 | R154: 1004.1 | S154: 71.11394561 | T154: 69.60175669 | U154: 71.64459517
A155: 2017-05-29 | B155: 83.8 | C155: 2017-05-29T15:00:04 | D155: 58.4 | E155: 2017-05-29T06:45:01 | F155: 67.9 | G155: 87.4 | H155: 35.7 | I155: 23.2 | J155: 9.4 | K155: 1091.7 | L155: 267.4 | M155: 0.1 | O155: 21.1 | P155: 1578.75 | Q155: 05/29 | R155: 1025.2 | S155: 69.69105873 | T155: 69.62426664 | U155: 71.96898639
A156: 2017-05-30 | B156: 82.6 | C156: 2017-05-30T13:15:05 | D156: 55.6 | E156: 2017-05-30T03:00:01 | F156: 66.3 | G156: 86.2 | H156: 30.8 | I156: 18.8 | J156: 5.3 | K156: 1147.3 | L156: 259.8 | M156: 0 | O156: 19.1 | P156: 1599.85 | Q156: =TEXT(A156,"mm/dd") -> 05/30 | R156: 1044.3 | S156: 68.91030533 | T156: 70.02496374 | U156: 72.40701594
A157: 2017-05-31 | B157: 83.5 | C157: 2017-05-31T16:45:01 | D157: 58.2 | E157: 2017-05-31T04:45:01 | F157: 68.2 | G157: 81.4 | H157: 28.6 | I157: 18.8 | J157: 5.8 | K157: 1173.6 | L157: 254.6 | M157: 0 | O157: 20.85 | P157: =P156+O156 -> 1618.95 | Q157: 05/31 | R157: 1065.15 | S157: 68.15932995 | T157: 70.49467465 | U157: 73.01976538
A158: 2017-06-01 | B158: 87.7 | C158: 2017-06-01T14:15:00 | D158: 54.3 | E158: 2017-06-01T07:00:03 | F158: 67.2 | G158: 82.3 | H158: 32.4 | I158: 24 | J158: 8.7 | K158: 1138.5 | L158: 238.3 | M158: 0.1 | O158: 21 | P158: 1639.8 | Q158: 06/01 | R158: 1086.15 | S158: 68.05152772 | T158: 70.69287508 | U158: 73.71752892
A159: 2017-06-02 | B159: 84.1 | C159: 2017-06-02T15:15:00 | D159: 56.3 | E159: 2017-06-02T06:30:05 | F159: 67 | G159: 81.8 | H159: 31.8 | I159: 18.8 | J159: 5.9 | K159: 1153.1 | L159: 229.5 | M159: 0.2 | O159: 20.2 | P159: 1660.8 | Q159: 06/02 | R159: 1106.35 | S159: =(S156+S157+S158+F159+F160+F161+F162)/7 -> 68.93159471 | T159: 71.21752024 | U159: 74.46174387
A160: 2017-06-03 | B160: 79 | C160: 2017-06-03T11:45:01 | D160: 56.5 | E160: 2017-06-03T06:00:01 | F160: 65 | G160: 88.5 | H160: 47.7 | I160: 24 | J160: 3.3 | K160: 986.3 | L160: 145.4 | M160: 0.3 | O160: 17.75 | P160: 1681 | Q160: 06/03 | R160: 1124.1 | S160: 70.16320748 | T160: 72.24730493 | U160: 75.13552785
A161: 2017-06-04 | B161: 85.8 | C161: 2017-06-04T18:00:01 | D161: 55 | E161: 2017-06-04T05:30:03 | F161: 70.4 | G161: 53.1 | H161: 29.5 | I161: 9.8 | J161: 3.7 | K161: 1240.9 | L161: 339.3 | M161: 0 | O161: 20.4 | P161: 1698.75 | Q161: 06/04 | R161: 1144.5 | S161: 71.82090427 | T161: 73.57355746 | U161: 75.72345543
A162: 2017-06-05 | B162: 89.5 | C162: 2017-06-05T18:15:01 | D162: 57.3 | E162: 2017-06-05T04:15:01 | F162: 75 | G162: 73.7 | H162: 29.5 | I162: 33.8 | J162: 6.9 | K162: 1000.9 | L162: 323.4 | M162: 0 | O162: 23.4 | P162: 1719.15 | Q162: 06/05 | R162: 1167.9 | S162: 72.65938664 | T162: 74.62501085 | U162: 76.25154089
A163: 2017-06-06 | B163: 88.9 | C163: 2017-06-06T16:15:01 | D163: 60.6 | E163: 2017-06-06T05:30:01 | F163: 75.6 | G163: 63.6 | H163: 31.6 | I163: 20.2 | J163: 5.6 | K163: 1039 | L163: 318.7 | M163: 0 | O163: 24.75 | P163: 1742.55 | Q163: 06/06 | R163: =O163+R162 -> 1192.65 | S163: 73.37764263 | T163: =(T156+T157+T158+T159+T160+T161+T162+F163+F164+F165+F166+F167+F168+F169+F170)/15 -> 75.40506046 | U163: 76.62559679
A164: 2017-06-07 | B164: 86.7 | C164: 2017-06-07T18:30:01 | D164: 63 | E164: 2017-06-07T05:45:01 | F164: 74.6 | G164: 66.4 | H164: 31.8 | I164: 22.5 | J164: 4.8 | K164: 1141.4 | L164: 216 | M164: 0 | O164: 24.85 | P164: 1767.3 | Q164: 06/07 | R164: 1217.5 | S164: 74.80827622 | T164: 76.03706691 | U164: 77.15563531
A165: 2017-06-08 | B165: 87.7 | C165: 2017-06-08T16:15:00 | D165: 59.5 | E165: 2017-06-08T04:45:01 | F165: 72.5 | G165: 82.8 | H165: 29.4 | I165: 29.2 | J165: 5.9 | K165: 1199.9 | L165: 252.7 | M165: 0.1 | O165: 23.6 | P165: 1792.15 | Q165: 06/08 | R165: 1241.1 | S165: 76.42075793 | T165: 76.95989306 | U165: 77.67167385
A166: 2017-06-09 | B166: 94 | C166: 2017-06-09T14:45:00 | D166: 61.6 | E166: 2017-06-09T07:15:01 | F166: 76.3 | G166: 68.3 | H166: 20.2 | I166: 20.2 | J166: 6.1 | K166: 1091.7 | L166: 274.4 | M166: 0 | O166: 27.8 | P166: 1815.75 | Q166: 06/09 | R166: 1268.9 | S166: 78.34381097 | T166: 78.32436093 | U166: 77.98479361
A167: 2017-06-10 | B167: 99.8 | C167: 2017-06-10T16:00:01 | D167: 64.8 | E167: 2017-06-10T02:00:01 | F167: 82.4 | G167: 46.7 | H167: 11.8 | I167: 20.2 | J167: 6.4 | K167: 1118 | L167: 329.4 | M167: 0 | O167: 32.3 | P167: 1843.55 | Q167: 06/10 | R167: 1301.2 | S167: 79.82469216 | T167: 79.46481697 | U167: 78.11022059
A168: 2017-06-11 | B168: 97.3 | C168: 2017-06-11T15:45:01 | D168: 68.2 | E168: 2017-06-11T07:45:01 | F168: 82.9 | G168: 66.5 | H168: 13.3 | I168: 19.5 | J168: 5.3 | K168: 1053.6 | L168: 332.2 | M168: 0 | O168: 32.75 | P168: 1875.85 | Q168: 06/11 | R168: 1333.95 | S168: 80.15560872 | T168: 79.99931778 | U168: 77.97382766
A169: 2017-06-12 | B169: 100 | C169: 2017-06-12T16:00:05 | D169: 65.7 | E169: 2017-06-12T06:45:05 | F169: 82.2 | G169: 67.9 | H169: 13.2 | I169: 17.2 | J169: 4.9 | K169: 1068.2 | L169: 333.9 | M169: 0 | O169: 32.85 | P169: 1908.6 | Q169: 06/12 | R169: 1366.8 | S169: 80.68915884 | T169: 80.08103513 | U169: 77.95973896
A170: 2017-06-13 | B170: 97.6 | C170: 2017-06-13T18:15:02 | D170: 67.5 | E170: 2017-06-13T04:45:02 | F170: 81.7 | G170: 68.9 | H170: 16.4 | I170: 17.2 | J170: 5.8 | K170: 1097.5 | L170: 285.7 | M170: 0 | O170: 32.55 | P170: 1941.45 | Q170: 06/13 | R170: 1399.35 | S170: 81.66706567 | T170: 80.33810342 | U170: 78.00216295
A171: 2017-06-14 | B171: 97.7 | C171: 2017-06-14T16:15:00 | D171: 66.5 | E171: 2017-06-14T06:00:00 | F171: 79.7 | G171: 64.5 | H171: 20.5 | I171: 29.2 | J171: 6.2 | K171: 1094.6 | L171: 243.1 | M171: 0 | O171: 32.1 | P171: 1974 | Q171: 06/14 | R171: 1431.45 | S171: 82.58740475 | T171: 80.56697295 | U171: =(U156+U157+U158+U159+U160+U161+U162+U163+U164+U165+U166+U167+U168+U169+U170+F171+F172+F173+F174+F175+F176+F177+F178+F179+F180+F181+F182+F183+F184+F185+F186)/31 -> 78.27742671
A172: 2017-06-15 | B172: 98.8 | C172: 2017-06-15T14:45:00 | D172: 67.9 | E172: 2017-06-15T01:15:01 | F172: 82.9 | G172: 57.4 | H172: 16.7 | I172: 24 | J172: 7.5 | K172: 1082.9 | L172: 262.6 | M172: 0 | O172: 33.35 | P172: 2006.1 | Q172: 06/15 | R172: 1464.8 | S172: 83.43480418 | T172: 81.26230002 | U172: 78.59905286
A173: 2017-06-16 | B173: 102.7 | C173: 2017-06-16T14:15:02 | D173: 67.8 | E173: 2017-06-16T05:30:01 | F173: 86.7 | G173: 53 | H173: 4.1 | I173: 24 | J173: 6.8 | K173: 980.4 | L173: 331.8 | M173: 0 | O173: 35.25 | P173: 2039.45 | Q173: 06/16 | R173: 1500.05 | S173: 83.08418209 | T173: 81.61579381 | U173: 78.64999762
A174: 2017-06-17 | B174: 101.2 | C174: 2017-06-17T16:15:01 | D174: 63 | E174: 2017-06-17T05:15:01 | F174: 86.3 | G174: 24.3 | H174: 2.2 | I174: 27 | J174: 8.7 | K174: 980.4 | L174: 338.8 | M174: 0 | O174: 32.1 | P174: 2074.7 | Q174: 06/17 | R174: 1532.15 | S174: 82.41519872 | T174: 81.08188934 | U174: 78.50910951
A175: 2017-06-18 | B175: 94.8 | C175: 2017-06-18T16:45:01 | D175: 68.2 | E175: 2017-06-18T04:15:01 | F175: 83.2 | G175: 59.6 | H175: 5.3 | I175: 31.5 | J175: 10.6 | K175: 977.5 | L175: 330.6 | M175: 0 | O175: 31.5 | P175: 2106.8 | Q175: 06/18 | R175: 1563.65 | S175: 81.51916928 | T175: 80.32969416 | U175: 78.29773421
A176: 2017-06-19 | B176: 90.4 | C176: 2017-06-19T15:15:01 | D176: 65.6 | E176: 2017-06-19T07:30:01 | F176: 77.7 | G176: 85.8 | H176: 42.4 | I176: 20.2 | J176: 7.2 | K176: 1041.9 | L176: 264.8 | M176: 0 | O176: 28 | P176: 2138.3 | Q176: 06/19 | R176: 1591.65 | S176: 81.5883643 | T176: 79.56505259 | U176: 78.19974087
A177: 2017-06-20 | B177: 95.3 | C177: 2017-06-20T16:45:01 | D177: 64.9 | E177: 2017-06-20T06:45:01 | F177: 80.6 | G177: 54.4 | H177: 20.9 | I177: 17.2 | J177: 6.1 | K177: 1053.6 | L177: 303.7 | M177: 0 | O177: 30.1 | P177: 2166.3 | Q177: 06/20 | R177: 1621.75 | S177: 82.26039033 | T177: 79.41732042 | U177: 78.24413717
A178: 2017-06-21 | B178: 96.6 | C178: 2017-06-21T17:45:01 | D178: 62.2 | E178: 2017-06-21T07:00:04 | F178: 80.2 | G178: 58 | H178: 20 | I178: 15.8 | J178: 4.2 | K178: 1033.1 | L178: 277 | M178: 0 | O178: 29.4 | P178: 2196.4 | Q178: 06/21 | R178: 1651.15 | S178: 81.4954177 | T178: 79.12926822 | U178: 78.04389834
A179: 2017-06-22 | B179: 102.8 | C179: 2017-06-22T14:45:00 | D179: 69.6 | E179: 2017-06-22T07:00:02 | F179: 85.6 | G179: 45.3 | H179: 15.9 | I179: 21.8 | J179: 5.9 | K179: 1115.1 | L179: 279.6 | M179: 0 | O179: 36.2 | P179: 2225.8 | Q179: 06/22 | R179: 1687.35 | S179: 80.52059605 | T179: 79.3000879 | U179: 77.69287581
A180: 2017-06-23 | B180: 102.5 | C180: 2017-06-23T15:00:01 | D180: 69 | E180: 2017-06-23T23:00:02 | F180: 83.9 | G180: 69.4 | H180: 16.9 | I180: 27 | J180: 6.7 | K180: 1059.5 | L180: 220.5 | M180: 0.1 | O180: 35.75 | P180: 2262 | Q180: 06/23 | R180: 1723.1 | S180: 78.3394863 | T180: 79.04927376 | U180: 77.33923841
A181: 2017-06-24 | B181: 86.9 | C181: 2017-06-24T17:00:02 | D181: 61.9 | E181: 2017-06-24T06:45:00 | F181: 75.4 | G181: 76.6 | H181: 39.6 | I181: 20.2 | J181: 7.3 | K181: 1094.6 | L181: 318.4 | M181: 0 | O181: 24.4 | P181: 2297.75 | Q181: 06/24 | R181: 1747.5 | S181: 76.65078572 | T181: 78.54483909 | U181: 77.07367598
A182: 2017-06-25 | B182: 87.1 | C182: 2017-06-25T14:00:02 | D182: 60.8 | E182: 2017-06-25T06:30:02 | F182: 73.4 | G182: 89.6 | H182: 39.6 | I182: 12 | J182: 4.7 | K182: 1103.4 | L182: 173.6 | M182: 0 | O182: 23.95 | P182: 2322.15 | Q182: 06/25 | R182: 1771.45 | S182: 76.21583829 | T182: 78.50903574 | U182: 77.10557541
A183: 2017-06-26 | B183: 85.4 | C183: 2017-06-26T15:00:01 | D183: 62.6 | E183: 2017-06-26T06:00:01 | F183: 71.4 | G183: 90.9 | H183: 43.8 | I183: 17.2 | J183: 4.5 | K183: 1112.1 | L183: 154.9 | M183: 0 | O183: 24 | P183: 2346.1 | Q183: 06/26 | R183: 1795.45 | S183: 77.14373004 | T183: 78.54099185 | U183: 77.11832879
A184: 2017-06-27 | B184: 92.7 | C184: 2017-06-27T15:30:01 | D184: 62.5 | E184: 2017-06-27T05:30:01 | F184: 76 | G184: 74.2 | H184: 27.1 | I184: 18 | J184: 4.8 | K184: 1220.4 | L184: 257.3 | M184: 0 | O184: 27.6 | P184: 2370.1 | Q184: 06/27 | R184: 1823.05 | S184: 78.74433629 | T184: 78.84605447 | U184: 77.18750625
A185: 2017-06-28 | B185: 99 | C185: 2017-06-28T16:45:01 | D185: 62.3 | E185: 2017-06-28T01:15:05 | F185: 77.2 | G185: 83.5 | H185: 16.3 | I185: 21 | J185: 6.5 | K185: 1199.9 | L185: 261.5 | M185: 0 | O185: 30.65 | P185: 2397.7 | Q185: 06/28 | R185: 1853.7 | S185: 79.45770066 | T185: 78.84797007 | U185: 76.84969229
A186: 2017-06-29 | B186: 100.5 | C186: 2017-06-29T15:30:02 | D186: 65 | E186: 2017-06-29T03:15:01 | F186: 84.2 | G186: 61.6 | H186: 9.8 | I186: 21.8 | J186: 6.4 | K186: 1009.7 | L186: 331.6 | M186: 0 | O186: 32.75 | P186: 2428.35 | Q186: 06/29 | R186: 1886.45 | S186: 79.94939529 | T186: 78.50921686 | U186: 76.48993517
A187: 2017-06-30 | B187: 103.7 | C187: 2017-06-30T16:00:01 | D187: 66.9 | E187: 2017-06-30T07:00:01 | F187: 83.8 | G187: 51.9 | H187: 11.9 | I187: 18.8 | J187: 4.3 | K187: 1173.6 | L187: 282.1 | M187: 0 | O187: 35.3 | P187: 2461.1 | Q187: 06/30 | R187: 1921.75 | S187: 79.13591889 | T187: 77.36982546 | U187: 75.88066125
A188: 2017-07-01 | B188: 93.2 | C188: 2017-07-01T14:30:02 | D188: 69.5 | E188: 2017-07-01T02:45:01 | F188: 78.9 | G188: 55.5 | H188: 23.8 | I188: 175.5 | J188: 6.4 | K188: 1109.2 | L188: 259.9 | M188: 0 | O188: 31.35 | P188: 2496.4 | Q188: 07/01 | R188: 1953.1 | S188: 78.22043069 | T188: 76.61119557 | U188: 75.34135829
A189: 2017-07-02 | B189: 93.1 | C189: 2017-07-02T15:00:03 | D189: 64.3 | E189: 2017-07-02T02:15:03 | F189: 77.4 | G189: 70.6 | H189: 24.7 | I189: 18.8 | J189: 5.2 | K189: 1185.3 | L189: 397.6 | M189: 0 | O189: 28.7 | P189: 2527.75 | Q189: 07/02 | R189: 1981.8 | S189: 77.71510641 | T189: 76.28895267 | U189: 75.04753122
A190: 2017-07-03 | B190: 95.2 | C190: 2017-07-03T14:30:01 | D190: 66 | E190: 2017-07-03T18:45:01 | F190: 75.7 | G190: 81.2 | H190: 22.6 | I190: 33 | J190: 6.6 | K190: 1126.8 | L190: 202.8 | M190: 0.1 | O190: 30.6 | P190: 2556.45 | Q190: 07/03 | R190: 2012.4 | S190: 76.68163657 | T190: 76.13428046 | U190: 74.7842545
A191: 2017-07-04 | B191: 93.4 | C191: 2017-07-04T14:30:02 | D191: 65.4 | E191: 2017-07-04T06:45:01 | F191: 77 | G191: 65.4 | H191: 24.5 | I191: 24 | J191: 5.2 | K191: 1109.2 | L191: 248.1 | M191: 0.1 | O191: 29.4 | P191: 2587.05 | Q191: 07/04 | R191: 2041.8 | S191: 75.2167391 | T191: 75.91383304 | U191: 74.43865838
A192: 2017-07-05 | B192: 91.3 | C192: 2017-07-05T16:00:01 | D192: 62.7 | E192: 2017-07-05T07:15:01 | F192: 76.6 | G192: 74.6 | H192: 21 | I192: 27 | J192: 6.7 | K192: 977.5 | L192: 315.8 | M192: 0 | O192: 27 | P192: 2616.45 | Q192: 07/05 | R192: 2068.8 | S192: 74.37335458 | T192: 75.54501827 | U192: 74.1979783
A193: 2017-07-06 | B193: 84.1 | C193: 2017-07-06T13:30:06 | D193: 62.6 | E193: 2017-07-06T05:30:02 | F193: 72.4 | G193: 79.4 | H193: 44 | I193: 19.5 | J193: 6.7 | K193: 1229.2 | L193: 260.3 | M193: 0.1 | O193: 23.35 | P193: 2643.45 | Q193: 07/06 | R193: 2092.15 | S193: 73.81024718 | T193: 74.63815482 | U193: 73.88036027
A194: 2017-07-07 | B194: 78.2 | C194: 2017-07-07T10:30:06 | D194: 61.5 | E194: 2017-07-07T04:15:01 | F194: 67.9 | G194: 81.9 | H194: 59 | I194: 24 | J194: 5 | K194: 705.3 | L194: 91.1 | M194: 0.3 | O194: 19.85 | P194: 2666.8 | Q194: 07/07 | R194: 2112 | S194: 74.10004869 | T194: 74.03341735 | U194: 73.8008913
A195: 2017-07-08 | B195: 89.2 | C195: 2017-07-08T15:45:04 | D195: 60.9 | E195: 2017-07-08T06:30:01 | F195: 74.1 | G195: 76.1 | H195: 33.1 | I195: 18 | J195: 4.4 | K195: 1199.9 | L195: 314.7 | M195: 0.1 | O195: 25.05 | P195: 2686.65 | Q195: 07/08 | R195: 2137.05 | S195: 74.92623578 | T195: 73.75765681 | U195: 73.70437567
A196: 2017-07-09 | B196: 90.8 | C196: 2017-07-09T16:30:01 | D196: 60.5 | E196: 2017-07-09T06:30:01 | F196: 76 | G196: 75 | H196: 26.9 | I196: 12 | J196: 3.8 | K196: 1065.3 | L196: 322 | M196: 0 | O196: 25.65 | P196: 2711.7 | Q196: 07/09 | R196: 2162.7 | S196: 75.04807595 | T196: 73.28075423 | U196: 73.50002526
A197: 2017-07-10 | B197: 92.9 | C197: 2017-07-10T16:30:01 | D197: 62 | E197: 2017-07-10T07:15:00 | F197: 77.3 | G197: 55.4 | H197: 22.1 | I197: 15 | J197: 3.9 | K197: 1314.1 | L197: 294.9 | M197: 0 | O197: 27.45 | P197: 2737.35 | Q197: 07/10 | R197: 2190.15 | S197: 73.83919435 | T197: 72.88687433 | U197: 73.37184298
A198: 2017-07-11 | B198: 87.1 | C198: 2017-07-11T18:30:02 | D198: 63.1 | E198: 2017-07-11T04:45:00 | F198: 74.8 | G198: 63.9 | H198: 33.8 | I198: 21 | J198: 4.9 | K198: 1074.1 | L198: 223.9 | M198: 0 | O198: 25.1 | P198: 2764.8 | Q198: 07/11 | R198: 2215.25 | S198: 72.3590723 | T198: 72.36371392 | U198: 73.24172258
A199: 2017-07-12 | B199: 89.5 | C199: 2017-07-12T17:45:01 | D199: 63.3 | E199: 2017-07-12T07:00:01 | F199: 74.4 | G199: 75.3 | H199: 33.8 | I199: 23.2 | J199: 5.2 | K199: 1021.4 | L199: 206.1 | M199: 0 | O199: 26.4 | P199: 2789.9 | Q199: 07/12 | R199: 2241.65 | S199: 70.89233466 | T199: 71.70703932 | U199: 73.16505786
A200: 2017-07-13 | B200: 78.4 | C200: 2017-07-13T11:15:00 | D200: 60.1 | E200: 2017-07-13T06:30:01 | F200: 66.3 | G200: 94.2 | H200: 60.8 | I200: 13.5 | J200: 3.5 | K200: 919 | L200: 93.4 | M200: 0.3 | O200: 19.25 | P200: 2816.3 | Q200: 07/13 | R200: 2260.9 | S200: 69.64151447 | T200: 71.37784072 | U200: 73.09659178
A201: 2017-07-14 | B201: 77.9 | C201: 2017-07-14T18:00:01 | D201: 62.6 | E201: 2017-07-14T04:00:08 | F201: 67.2 | G201: 98.6 | H201: 67.8 | I201: 14.2 | J201: 4.5 | K201: 1123.8 | L201: 149.5 | M201: 0.6 | O201: 20.25 | P201: 2835.55 | Q201: 07/14 | R201: 2281.15 | S201: 70.01327449 | T201: 71.46048645 | U201: 73.22391112
A202: 2017-07-15 | B202: 74.6 | C202: 2017-07-15T19:45:04 | D202: 60.6 | E202: 2017-07-15T12:30:01 | F202: 67.1 | G202: 97.1 | H202: 65.7 | I202: 19.5 | J202: 3.3 | K202: 640.9 | L202: 74.2 | M202: 0.1 | O202: 17.6 | P202: 2855.8 | Q202: 07/15 | R202: 2298.75 | S202: 70.4638748 | T202: 71.74895772 | U202: 73.36694261
A203: 2017-07-16 | B203: 83.4 | C203: 2017-07-16T14:30:01 | D203: 62.6 | E203: 2017-07-16T07:00:01 | F203: 69.8 | G203: 91.6 | H203: 48.2 | I203: 18 | J203: 5.1 | K203: 1311.2 | L203: 179.6 | M203: 0.3 | O203: 23 | P203: 2873.4 | Q203: 07/16 | R203: 2321.75 | S203: 70.60266625 | T203: 71.72837778 | U203: 73.64391942
... 981 more rows

Sheet Plots

Sheet Tables
B4: Monthly Average Temp | C4: January | D4: February | E4: March | F4: April | G4: May | H4: June | I4: July | J4: August | K4: September | L4: October | M4: November | N4: December | P4: Monthly Average High Temp | Q4: January | R4: February | S4: March | T4: April | U4: May | V4: June | W4: July | X4: August | Y4: September | Z4: October | AA4: November | AB4: December | AD4: Monthly Average Low Temp | AE4: January | AF4: February | AG4: March | AH4: April | AI4: May | AJ4: June | AK4: July | AL4: August | AM4: September | AN4: October | AO4: November | AP4: December
B5: 2017 | C5: =AVERAGE('paste raw data'!F27:F37) -> 43.8 | D5: =AVERAGE('paste raw data'!F38:F65) -> 54.75357143 | E5: =AVERAGE('paste raw data'!F66:F96) -> 61.40645161 | F5: =AVERAGE('paste raw data'!F97:F126) -> 64.30666667 | G5: =AVERAGE('paste raw data'!F127:F157) -> 70.07419355 | H5: =AVERAGE('paste raw data'!F158:F187) -> 78.03333333 | I5: =AVERAGE('paste raw data'!F188:F218) -> 73.48064516 | J5: =AVERAGE('paste raw data'!F219:F249) -> 71.64193548 | K5: =AVERAGE('paste raw data'!F250:F279) -> 70.37666667 | L5: =AVERAGE('paste raw data'!F280:F310) -> 62.71612903 | M5: =AVERAGE('paste raw data'!F311:F340) -> 58.48 | N5: =AVERAGE('paste raw data'!F341:F371) -> 46.87741935 | P5: 2017 | Q5: =AVERAGE('paste raw data'!B27:B37) -> 58.23636364 | R5: =AVERAGE('paste raw data'!B38:B65) -> 69.725 | S5: =AVERAGE('paste raw data'!B66:B96) -> 78.32580645 | T5: =AVERAGE('paste raw data'!B97:B126) -> 80.17333333 | U5: =AVERAGE('paste raw data'!B127:B157) -> 85.32580645 | V5: =AVERAGE('paste raw data'!B158:B187) -> 93.87333333 | W5: =AVERAGE('paste raw data'!B188:B218) -> 87.29032258 | X5: =AVERAGE('paste raw data'!B219:B249) -> 85.21935484 | Y5: =AVERAGE('paste raw data'!B250:B279) -> 85.91666667 | Z5: =AVERAGE('paste raw data'!B280:B310) -> 79.55483871 | AA5: =AVERAGE('paste raw data'!B311:B340) -> 75.17666667 | AB5: =AVERAGE('paste raw data'!B341:B371) -> 62.62903226 | AD5: 2017 | AE5: =AVERAGE('paste raw data'!D27:D37) -> 31.61818182 | AF5: =AVERAGE('paste raw data'!D38:D65) -> 40.96428571 | AG5: =AVERAGE('paste raw data'!D66:D96) -> 45.68709677 | AH5: =AVERAGE('paste raw data'!D97:D126) -> 49.61 | AI5: =AVERAGE('paste raw data'!D127:D157) -> 54.47419355 | AJ5: =AVERAGE('paste raw data'!D158:D187) -> 63.23333333 | AK5: =AVERAGE('paste raw data'!D188:D218) -> 63.13548387 | AL5: =AVERAGE('paste raw data'!D219:D249) -> 61.16774194 | AM5: =AVERAGE('paste raw data'!D250:D279) -> 57.74666667 | AN5: =AVERAGE('paste raw data'!D280:D310) -> 49.22580645 | AO5: =AVERAGE('paste raw data'!D311:D340) -> 43.28666667 | AP5: =AVERAGE('paste raw data'!D341:D371) -> 32.80967742
B6: 2018 | C6: =AVERAGE('paste raw data'!F372:F402) -> 44.50645161 | D6: =AVERAGE('paste raw data'!F403:F430) -> 53.15 | E6: =AVERAGE('paste raw data'!F431:F461) -> 58.12903226 | F6: =AVERAGE('paste raw data'!F462:F491) -> 64.06 | G6: =AVERAGE('paste raw data'!F492:F522) -> 74.62580645 | H6: =AVERAGE('paste raw data'!F523:F552) -> 78.16333333 | I6: =AVERAGE('paste raw data'!F553:F583) -> 75.36451613 | J6: =AVERAGE('paste raw data'!F584:F614) -> 73.91612903 | K6: =AVERAGE('paste raw data'!F615:F644) -> 67.36 | L6: =AVERAGE('paste raw data'!F645:F675) -> 58.97096774 | M6: =AVERAGE('paste raw data'!F676:F705) -> 48.92333333 | N6: =AVERAGE('paste raw data'!F706:F736) -> 44.37096774 | P6: 2018 | Q6: =AVERAGE('paste raw data'!B372:B402) -> 60.60322581 | R6: =AVERAGE('paste raw data'!B403:B430) -> 68.61785714 | S6: =AVERAGE('paste raw data'!B431:B461) -> 73.07741935 | T6: =AVERAGE('paste raw data'!B462:B491) -> 80.40333333 | U6: =AVERAGE('paste raw data'!B492:B522) -> 91.07419355 | V6: =AVERAGE('paste raw data'!B523:B552) -> 93.69666667 | W6: =AVERAGE('paste raw data'!B553:B583) -> 89.93870968 | X6: =AVERAGE('paste raw data'!B584:B614) -> 89.78064516 | Y6: =AVERAGE('paste raw data'!B615:B644) -> 81.93333333 | Z6: =AVERAGE('paste raw data'!B645:B675) -> 73.20645161 | AA6: =AVERAGE('paste raw data'!B676:B705) -> 65.41 | AB6: =AVERAGE('paste raw data'!B706:B736) -> 57.81935484 | AD6: 2018 | AE6: =AVERAGE('paste raw data'!D372:D402) -> 30.49354839 | AF6: =AVERAGE('paste raw data'!D403:D430) -> 38.09285714 | AG6: =AVERAGE('paste raw data'!D431:D461) -> 43.20645161 | AH6: =AVERAGE('paste raw data'!D462:D491) -> 47.52666667 | AI6: =AVERAGE('paste raw data'!D492:D522) -> 58.40645161 | AJ6: =AVERAGE('paste raw data'!D523:D552) -> 63.53333333 | AK6: =AVERAGE('paste raw data'!D553:D583) -> 63.0483871 | AL6: =AVERAGE('paste raw data'!D584:D614) -> 61.82903226 | AM6: =AVERAGE('paste raw data'!D615:D644) -> 57.00333333 | AN6: =AVERAGE('paste raw data'!D645:D675) -> 48.51935484 | AO6: =AVERAGE('paste raw data'!D676:D705) -> 35.18333333 | AP6: =AVERAGE('paste raw data'!D706:D736) -> 33.0516129
B7: 2019 | C7: =AVERAGE('paste raw data'!F737:F767) -> 44.83225806 | D7: =AVERAGE('paste raw data'!F768:F795) -> 50.16071429 | E7: =AVERAGE('paste raw data'!F796:F826) -> 54.112 | F7: =AVERAGE('paste raw data'!F827:F856) -> 63.18 | G7: =AVERAGE('paste raw data'!F857:F887) -> 67.89032258 | H7: =AVERAGE('paste raw data'!F888:F917) -> 74.09333333 | I7: =AVERAGE('paste raw data'!F918:F948) -> 76.39032258 | J7: =AVERAGE('paste raw data'!F949:F979) -> 78.66451613 | K7: =AVERAGE('paste raw data'!F980:F1009) -> 71.62666667 | L7: =AVERAGE('paste raw data'!F1010:F1040) -> 60.65806452 | M7: =AVERAGE('paste raw data'!F1041:F1070) -> 53.21 | N7: =AVERAGE('paste raw data'!F1071:F1101) -> 46.62903226 | P7: 2019 | Q7: =AVERAGE('paste raw data'!B737:B767) -> 59.15806452 | R7: =AVERAGE('paste raw data'!B768:B795) -> 64.66071429 | S7: =AVERAGE('paste raw data'!B796:B826) -> 69 | T7: =AVERAGE('paste raw data'!B827:B856) -> 78.55666667 | U7: =AVERAGE('paste raw data'!B857:B887) -> 82.43870968 | V7: =AVERAGE('paste raw data'!B888:B917) -> 89.45 | W7: =AVERAGE('paste raw data'!B918:B948) -> 93.07741935 | X7: =AVERAGE('paste raw data'!B949:B979) -> 95.7 | Y7: =AVERAGE('paste raw data'!B980:B1009) -> 87.6 | Z7: =AVERAGE('paste raw data'!B1010:B1040) -> 75.73870968 | AA7: =AVERAGE('paste raw data'!B1041:B1070) -> 66.72 | AB7: =AVERAGE('paste raw data'!B1071:B1101) -> 61.87419355 | AD7: 2019 | AE7: =AVERAGE('paste raw data'!D737:D767) -> 31.29677419 | AF7: =AVERAGE('paste raw data'!D768:D795) -> 36.82142857 | AG7: =AVERAGE('paste raw data'!D796:D826) -> 39.824 | AH7: =AVERAGE('paste raw data'!D827:D856) -> 46.51666667 | AI7: =AVERAGE('paste raw data'!D857:D887) -> 53.4483871 | AJ7: =AVERAGE('paste raw data'!D888:D917) -> 59.47 | AK7: =AVERAGE('paste raw data'!D918:D948) -> 62.06451613 | AL7: =AVERAGE('paste raw data'!D949:D979) -> 64.56129032 | AM7: =AVERAGE('paste raw data'!D980:D1009) -> 60.68333333 | AN7: =AVERAGE('paste raw data'!D1010:D1040) -> 47.33225806 | AO7: =AVERAGE('paste raw data'!D1041:D1070) -> 40.08333333 | AP7: =AVERAGE('paste raw data'!D1071:D1101) -> 32.74516129
B8: 2020 | C8: =AVERAGE('paste raw data'!F1102:F1132) -> 46.3 | D8: =AVERAGE('paste raw data'!F1133:F1161) -> 46.45862069 | E8: =AVERAGE('paste raw data'!F1162:F1177) -> 56.525 | P8: 2020 | Q8: =AVERAGE('paste raw data'!B1102:B1132) -> 61.43870968 | R8: =AVERAGE('paste raw data'!B1133:B1161) -> 62.05172414 | S8: =AVERAGE('paste raw data'!B1162:B1177) -> 70.31875 | AD8: 2020 | AE8: =AVERAGE('paste raw data'!D1102:D1132) -> 32.98387097 | AF8: =AVERAGE('paste raw data'!D1133:D1161) -> 32.70689655 | AG8: =AVERAGE('paste raw data'!D1162:D1177) -> 45.29375
